Inv Transaction,Supplier Name,Service Name,Department,Account Description,Redacted/Business Supplier,Paid Date, Amount Paid ,Non Recoverable VAT (Where Applicable),Merchant Category
5188827,AON LIMITED,Corporate Costs,Corporate Costs,Miscellaneous Insurance,,02/02/2015,"1,060.00",,Financial Services
5188408,ROYAL MAIL GROUP PLC,Exchequer,Director of Finance,Postages,,02/02/2015,"3,202.17",,Mail Services
5188938,VODAFONE,Finance,Director of Finance,Telephone Landline Costs,,02/02/2015,797.9,,Information Communication Technology
460291,RIVERSIDE CARE CENTRE,Adult Social Care,Director of People,Residential Home Long Stay Fees,,02/02/2015,491.08,,Social Community Care Supplies & Services
460291,RIVERSIDE CARE CENTRE,Adult Social Care,Director of People,Residential Home Long Stay Fees,,02/02/2015,"62,349.57",,Social Community Care Supplies & Services
5188080,NORTH WEST COMMUNITY  SERVICES (GTR M/CR) LTD,Adult Social Care,Director of People,Homecare Fees,,02/02/2015,"11,048.80",,Social Community Care Supplies & Services
5188276,DOMAIN CARE NORTH WEST LTD,Adult Social Care,Director of People,Homecare Fees,,02/02/2015,639.6,,Social Community Care
5188319,DOMAIN CARE NORTH WEST LTD,Adult Social Care,Director of People,Homecare Fees,,02/02/2015,"1,440.00",,Social Community Care
5188329,DOMAIN CARE NORTH WEST LTD,Adult Social Care,Director of People,Homecare Fees,,02/02/2015,"3,960.00",,Social Community Care
5188331,DOMAIN CARE NORTH WEST LTD,Adult Social Care,Director of People,Homecare Fees,,02/02/2015,799.5,,Social Community Care
5188507,ALTERNATIVE FUTURES GROUP,Adult Social Care,Director of People,Homecare Fees,,02/02/2015,"116,656.04",,Social Community Care Supplies & Services
5188512,ALTERNATIVE FUTURES GROUP,Adult Social Care,Director of People,Homecare Fees,,02/02/2015,"3,178.62",,Social Community Care Supplies & Services
5188664,VODAFONE,Adult Social Care,Director of People,Telephone Landline Costs,,02/02/2015,21.2,,Information Communication Technology
5188732,CARE UK HOMECARE,Adult Social Care,Director of People,Homecare Fees,,02/02/2015,"113,208.33",,Social Community Care Supplies & Services
5188885,MRL HEALTHCARE LIMITED,Adult Social Care,Director of People,Homecare Fees,,02/02/2015,"30,000.00",,Social Community Care Supplies & Services
5188916,DENTON LINKS,Childrens Services,Director of People,Hired Transport,,02/02/2015,"1,425.00",,Transport
5188893,RADIO CABS (ASHTON)LTD,Education,Director of People,Transport Of Pupils,,02/02/2015,"1,410.00",,Transport
5188894,RADIO CABS (ASHTON)LTD,Education,Director of People,Transport Of Pupils,,02/02/2015,"1,200.00",,Transport
5188895,RADIO CABS (ASHTON)LTD,Education,Director of People,Transport Of Post 16 Pupils,,02/02/2015,"1,149.00",,Transport
5188896,RADIO CABS (ASHTON)LTD,Education,Director of People,Transport Of Pupils,,02/02/2015,"1,410.00",,Transport
5188897,RADIO CABS (ASHTON)LTD,Education,Director of People,Transport Of Pupils,,02/02/2015,"1,725.00",,Transport
5188898,RADIO CABS (ASHTON)LTD,Education,Director of People,Transport Of Pupils,,02/02/2015,"1,410.00",,Transport
5188906,RADIO CABS (ASHTON)LTD,Education,Director of People,Transport Of Pupils,,02/02/2015,"1,620.00",,Transport
5188907,RADIO CABS (ASHTON)LTD,Education,Director of People,Transport Of Pupils,,02/02/2015,774,,Transport
5188910,RADIO CABS (ASHTON)LTD,Education,Director of People,Transport Of Ola Pupils,,02/02/2015,"1,539.00",,Transport
5188912,RADIO CABS (ASHTON)LTD,Education,Director of People,Transport Of Ola Pupils,,02/02/2015,"1,590.00",,Transport
5188913,RADIO CABS (ASHTON)LTD,Education,Director of People,Transport Of Pupils,,02/02/2015,"1,044.00",,Transport
5188917,DENTON LINKS,Education,Director of People,Transport Of Ola Pupils,,02/02/2015,"1,725.00",,Transport
5188918,DENTON LINKS,Education,Director of People,Transport Of Ola Pupils,,02/02/2015,"1,125.00",,Transport
5188919,DENTON LINKS,Education,Director of People,Transport Of Ola Pupils,,02/02/2015,"2,505.00",,Transport
5188945,VILLAGE URBAN RESORTS,Education,Director of People,Room Hire,,02/02/2015,"1,260.00",,Human Resources
5189090,HOWARD COOK,Education,Director of People,Professional Services,Business Payment,02/02/2015,680,,Unclassifiable
5187375,NORTHGATE INFORMATION SOLUTIONS UK LTD,Stronger Communities,Director of People,Computer Hardware Purchase,,02/02/2015,"1,195.73",,Information Communication Technology
5187430,MES LTD,Stronger Communities,Director of People,Purchase Books,,02/02/2015,600,,Environmental Services
5188664,VODAFONE,Stronger Communities,Director of People,Telephone Landline Costs,,02/02/2015,26.17,,Information Communication Technology
5188704,KEITH GARDNER,Stronger Communities,Director of People,Grants to Organisations,Business Payment,02/02/2015,525,,Unclassifiable
5187304,MATTHEWS & GOODMAN LLP,Asset & Investment Partnership Management,Director of Place,Building Maintenance,,02/02/2015,"3,850.00",,Consultancy
5188356,PEARSON,Development Growth & Investment,Director of Place,Examination Fees,,02/02/2015,517,,Education
5188793,STOCKPORT MBC,Development Growth & Investment,Director of Place,Contributions,,02/02/2015,"1,000.00",,Highway Equipment & Materials�
5188662,ORANGE PCS,Digital Tameside,Director of Place,Mobile Telephones,,02/02/2015,"6,385.67",,Information Communication Technology
470602,ELLIOTT GROUP LTD,Environmental Services,Director of Place,Additional Hire,,02/02/2015,"3,079.40",,"Works - Construction, Repair & Maintenance"
470602,P CASEY (ENVIRO) LTD,Environmental Services,Director of Place,Tipping Facility Fees,,02/02/2015,"2,732.34",,Public Bodies
5180490,PHS GROUP PLC,Environmental Services,Director of Place,Sub-contractor Services,,02/02/2015,"2,597.86",,Cleaning & Janitorial
5188664,VODAFONE,Environmental Services,Director of Place,Telephone Landline Costs,,02/02/2015,33.65,,Information Communication Technology
5188902,RADIO CABS (ASHTON)LTD,Environmental Services,Director of Place,Hired Transport,,02/02/2015,876.4,,Transport
5188905,RADIO CABS (ASHTON)LTD,Environmental Services,Director of Place,Hired Transport,,02/02/2015,548.1,,Transport
470602,INNOVATIVE GLOBAL PRODUCTS LTD,Environmental Services,Director of Place,Debits Goods Received,,02/02/2015,"2,737.80",,Highway Equipment & Materials�
5187251,HOLLISSVINCENT,Development Growth & Investment,Director of Place,Professional Services,,02/02/2015,"8,945.00",,Unclassifiable
5187412,VODAFONE,Multiple Heads of Service,Multiple Strategic Directorates,Telephone Landline Costs,,02/02/2015,"1,890.18",,Information Communication Technology
5188664,VODAFONE,Multiple Heads of Service,Multiple Strategic Directorates,Telephone Landline Costs,,02/02/2015,967.99,,Information Communication Technology
5189003,VODAFONE,Multiple Heads of Service,Multiple Strategic Directorates,Telephone Landline Costs, ,02/02/2015,"6,438.67",,Information Communication Technology
5185282,AON LIMITED,Corporate Costs,Corporate Costs,Miscellaneous Insurance,,04/02/2015,"4,378.91",,Financial Services
5189373,FRIENDS OF SUNNYBANK VALE,Corporate Costs,Corporate Costs,Contributions,,04/02/2015,500,,Financial Services
5189057,HMCTS,Exchequer,Director of Finance,Court Fees,,04/02/2015,"5,478.00",,Unclassifiable
5187054,XEROX (UK) LIMITED,Governance,Director of Governance,Printing And Stationery,,04/02/2015,"4,956.47",,Information Communication Technology
5189074,PRD PROPERTY SERVICES LTD,Governance,Director of Governance,Legal Fees,,04/02/2015,"4,320.00",,Facilities & Management Services
460293,STALEY HOUSE EPH,Adult Social Care,Director of People,Residential Home Long Stay Fees,,04/02/2015,"21,836.81",,Social Community Care Supplies & Services
5188842,CREATIVE SUPPORT LTD,Adult Social Care,Director of People,Homecare Fees,,04/02/2015,"13,948.90",,Social Community Care Supplies & Services
5189129, ,Adult Social Care,Director of People,Contribution to Maintenance Fee Income,Redacted Supplier,04/02/2015,"1,025.12",,Redacted 
5189130, ,Adult Social Care,Director of People,Homecare Fees,Redacted Supplier,04/02/2015,"1,179.18",,Redacted 
5189131, ,Adult Social Care,Director of People,Homecare Fees,Redacted Supplier,04/02/2015,742.71,,Redacted 
5189201, ,Adult Social Care,Director of People,Contribution to Maintenance Fee Income,Redacted Supplier,04/02/2015,610.37,,Redacted 
5189376, ,Adult Social Care,Director of People,Contribution to Maintenance Fee Income,Redacted Supplier,04/02/2015,549.64,,Redacted 
5189377, ,Adult Social Care,Director of People,Contribution to Maintenance Fee Income,Redacted Supplier,04/02/2015,901.32,,Redacted 
5189091,PROBIN MELA LUNCHEON CLUB,Adults Early Intervention,Director of People,Luncheon Club Fees,,04/02/2015,811.75,,Social Community Care Supplies & Services
5189116,PROBIN MELA LUNCHEON CLUB,Adults Early Intervention,Director of People,Luncheon Club Fees,,04/02/2015,811.75,,Social Community Care Supplies & Services
5189117,PROBIN MELA LUNCHEON CLUB,Adults Early Intervention,Director of People,Luncheon Club Fees,,04/02/2015,811.75,,Social Community Care Supplies & Services
5189355, ,Adults Early Intervention,Director of People,Contributions,Redacted Supplier,04/02/2015,555,,Redacted 
5189393,COMMUNITY AND VOLUNTARY ACTION TAMESIDE,Adults Early Intervention,Director of People,Development Monies,,04/02/2015,"1,746.00",,Financial Services
5189481,AGE UK TAMESIDE,Adults Early Intervention,Director of People,Age Concern Fees,,04/02/2015,"3,501.67",,Environmental Services
5189485,AGE UK TAMESIDE,Adults Early Intervention,Director of People,Age Concern Fees,,04/02/2015,"3,501.67",,Environmental Services
5189460,MISS JANICE WILLS,Childrens Services,Director of People,Legal Fees,Business Payment,04/02/2015,"1,500.00",,Legal Services
5189461,JEAN SAMBROOKS,Childrens Services,Director of People,Professional Services,Business Payment,04/02/2015,621.76,,Medical
5187420,PENNINE CAMPHILL COMMUNITY,Education,Director of People,Professional Services,,04/02/2015,"8,000.00",,Education
5187616,JOHN PACKER LIMITED,Education,Director of People,Educational Equipment,,04/02/2015,"1,469.17",,Social Community Care
5187815,JOHN PACKER LIMITED,Education,Director of People,Educational Equipment,,04/02/2015,580,,Social Community Care
5188240,NPOWER LIMITED,Education,Director of People,Electricity,,04/02/2015,"1,787.29",,Utilities
5189169,MACINTYRE CARE,Education,Director of People,Voluntary Organisations Fees,,04/02/2015,"1,156.95",,Education
5189394,BOLTON MBC,Education,Director of People,Transport Of Ola Pupils,,04/02/2015,912,,Human Resources
5189426,VILLAGE URBAN RESORTS,Education,Director of People,Training Course Costs,,04/02/2015,627.5,,Human Resources
5185208,SPACECADETS AIR DESIGN LTD,Stronger Communities,Director of People,Professional Entertainment Services,,04/02/2015,"1,030.00",,Facilities & Management Services
5189004,IAN BOYS,Stronger Communities,Director of People,Other Accomodation Related Costs,Business Payment,04/02/2015,500,,Mail Services
5189006,SHAHEEN NAZ,Stronger Communities,Director of People,Other Accomodation Related Costs,Business Payment,04/02/2015,500,,Unclassifiable
5189141,PAYPOINT COLLECTIONS LTD,Stronger Communities,Director of People,Emergency Grant Payments,,04/02/2015,"1,621.00",,Unclassifiable
5189218,STONE SOUP,Stronger Communities,Director of People,Professional Entertainment Services,,04/02/2015,"2,115.00",,Public Bodies
5189391,BRIGHT PROPERTY LTD,Stronger Communities,Director of People,Emergency Grant Payments,,04/02/2015,560,,Unclassifiable
5186954,SANCTUARY HOUSING  ASSOCIATION,Asset & Investment Partnership Management,Director of Place,Non-Authority Accommodation Rental,,04/02/2015,"6,857.34",,Housing Management
5187169,SANCTUARY HOUSING  ASSOCIATION,Asset & Investment Partnership Management,Director of Place,Non-Authority Accommodation Rental,,04/02/2015,"6,857.34",,Housing Management
5188168,INSPIREDSPACES TAMESIDE LTD,Asset & Investment Partnership Management,Director of Place,Miscellaneous Insurance,,04/02/2015,"68,541.07",,Consultancy
5188185,CALL A CAR (TAMESIDE) LTD,Asset & Investment Partnership Management,Director of Place,Hired Transport,,04/02/2015,667.5,,Human Resources
5188226,CORONA ENERGY RETAIL 4 LIMITED,Asset & Investment Partnership Management,Director of Place,Gas,,04/02/2015,"1,098.95",,Utilities
5188327,DIOCESE OF SALFORD DFC,Asset & Investment Partnership Management,Director of Place,Non-Authority Accommodation Rental,,04/02/2015,"1,750.00",,Unclassifiable
5188521,PYRAMID SCHOOLS (TAMESIDE) LTD,Asset & Investment Partnership Management,Director of Place,Professional Services,,04/02/2015,"19,505.56",,"Works - Construction, Repair & Maintenance"
5188521,PYRAMID SCHOOLS (TAMESIDE) LTD,Asset & Investment Partnership Management,Director of Place,Unitary Charge Payments,,04/02/2015,"265,138.45",,"Works - Construction, Repair & Maintenance"
5188523,INSPIREDSPACES TAMESIDE LTD,Asset & Investment Partnership Management,Director of Place,Agency Staff,,04/02/2015,"95,941.43",,Consultancy
5188523,INSPIREDSPACES TAMESIDE LTD,Asset & Investment Partnership Management,Director of Place,Computer Software Maintenance Costs,,04/02/2015,"11,250.00",,Consultancy
5188523,INSPIREDSPACES TAMESIDE LTD,Asset & Investment Partnership Management,Director of Place,Professional Services,,04/02/2015,"32,312.00",,Consultancy
5188523,INSPIREDSPACES TAMESIDE LTD,Asset & Investment Partnership Management,Director of Place,Refreshments,,04/02/2015,"81,173.17",,Consultancy
5188532,NPOWER LIMITED,Asset & Investment Partnership Management,Director of Place,Electricity,,04/02/2015,880.6,,Utilities
5188534,NPOWER LIMITED,Asset & Investment Partnership Management,Director of Place,Electricity,,04/02/2015,"2,702.89",,Utilities
5188535,NPOWER LIMITED,Asset & Investment Partnership Management,Director of Place,Electricity,,04/02/2015,706.74,,Utilities
5188537,NPOWER LIMITED,Asset & Investment Partnership Management,Director of Place,Electricity,,04/02/2015,632.86,,Utilities
5188538,NPOWER LIMITED,Asset & Investment Partnership Management,Director of Place,Electricity,,04/02/2015,672.48,,Utilities
5188541,NPOWER LIMITED,Asset & Investment Partnership Management,Director of Place,Gas,,04/02/2015,"1,676.83",,Utilities
5188554,NPOWER LIMITED,Asset & Investment Partnership Management,Director of Place,Electricity,,04/02/2015,511.15,,Utilities
5188558,NPOWER LIMITED,Asset & Investment Partnership Management,Director of Place,Electricity,,04/02/2015,"1,738.80",,Utilities
5188560,NPOWER LIMITED,Asset & Investment Partnership Management,Director of Place,Electricity,,04/02/2015,890.93,,Utilities
5188563,NPOWER LIMITED,Asset & Investment Partnership Management,Director of Place,Electricity,,04/02/2015,"1,500.11",,Utilities
5188571,NPOWER LIMITED,Asset & Investment Partnership Management,Director of Place,Electricity,,04/02/2015,"2,349.79",,Utilities
5188574,NPOWER LIMITED,Asset & Investment Partnership Management,Director of Place,Electricity,,04/02/2015,"2,446.08",,Utilities
5188576,NPOWER LIMITED,Asset & Investment Partnership Management,Director of Place,Electricity,,04/02/2015,850.05,,Utilities
5188581,NPOWER LIMITED,Asset & Investment Partnership Management,Director of Place,Electricity,,04/02/2015,"1,530.04",,Utilities
5188585,NPOWER LIMITED,Asset & Investment Partnership Management,Director of Place,Electricity,,04/02/2015,802.57,,Utilities
5188589,NPOWER LIMITED,Asset & Investment Partnership Management,Director of Place,Electricity,,04/02/2015,"1,907.95",,Utilities
5188595,NPOWER LIMITED,Asset & Investment Partnership Management,Director of Place,Electricity,,04/02/2015,"1,131.49",,Utilities
5188599,NPOWER LIMITED,Asset & Investment Partnership Management,Director of Place,Electricity,,04/02/2015,"1,912.43",,Utilities
5188602,NPOWER LIMITED,Asset & Investment Partnership Management,Director of Place,Electricity,,04/02/2015,963.75,,Utilities
5188603,NPOWER LIMITED,Asset & Investment Partnership Management,Director of Place,Electricity,,04/02/2015,"1,315.85",,Utilities
5188610,NPOWER LIMITED,Asset & Investment Partnership Management,Director of Place,Electricity,,04/02/2015,977.02,,Utilities
5188613,NPOWER LIMITED,Asset & Investment Partnership Management,Director of Place,Electricity,,04/02/2015,736.16,,Utilities
5188614,NPOWER LIMITED,Asset & Investment Partnership Management,Director of Place,Electricity,,04/02/2015,"2,294.95",,Utilities
5188622,NPOWER LIMITED,Asset & Investment Partnership Management,Director of Place,Electricity,,04/02/2015,"7,281.12",,Utilities
5188627,NPOWER LIMITED,Asset & Investment Partnership Management,Director of Place,Electricity,,04/02/2015,"1,316.15",,Utilities
5188631,NPOWER LIMITED,Asset & Investment Partnership Management,Director of Place,Electricity,,04/02/2015,"2,922.01",,Utilities
5188633,NPOWER LIMITED,Asset & Investment Partnership Management,Director of Place,Electricity,,04/02/2015,"1,426.16",,Utilities
5188634,NPOWER LIMITED,Asset & Investment Partnership Management,Director of Place,Electricity,,04/02/2015,"21,543.68",,Utilities
5188636,NPOWER LIMITED,Asset & Investment Partnership Management,Director of Place,Electricity,,04/02/2015,"1,567.63",,Utilities
5188638,NPOWER LIMITED,Asset & Investment Partnership Management,Director of Place,Gas,,04/02/2015,639.25,,Utilities
5188642,NPOWER LIMITED,Asset & Investment Partnership Management,Director of Place,Gas,,04/02/2015,"1,307.79",,Utilities
5188646,VODAFONE,Asset & Investment Partnership Management,Director of Place,Telephone Landline Costs,,04/02/2015,844.3,,Information Communication Technology
5188738,NPOWER LIMITED,Asset & Investment Partnership Management,Director of Place,Electricity,,04/02/2015,871.74,,Utilities
5188741,NPOWER LIMITED,Asset & Investment Partnership Management,Director of Place,Electricity,,04/02/2015,"1,262.17",,Utilities
5189070,UNITED UTILITIES WATER PLC,Asset & Investment Partnership Management,Director of Place,Metered Water Costs,,04/02/2015,"1,240.76",,Utilities
3250493,ATS EUROMASTER LTD,Environmental Services,Director of Place,Tyre Costs,,04/02/2015,"4,448.88",,Vehicles
3250493,DENNIS EAGLE LTD,Environmental Services,Director of Place,General Materials,,04/02/2015,"2,290.85",,Vehicles
3250493,G B OILS TA CARLTON FUELS,Environmental Services,Director of Place,General Materials,,04/02/2015,"9,089.00",,Utilities
3250493,G M RECOVERY LTD,Environmental Services,Director of Place,General Materials,,04/02/2015,732.5,,Vehicles
3250493,JOHNSTON SWEEPERS LTD,Environmental Services,Director of Place,General Materials,,04/02/2015,"2,620.96",,Environmental Services
5187494,RIGBY TAYLOR LTD,Environmental Services,Director of Place,General Materials,,04/02/2015,"1,592.00",,Horticultural
5189070,UNITED UTILITIES WATER PLC,Environmental Services,Director of Place,Metered Water Costs,,04/02/2015,887,,Utilities
5189088,RADIO CABS (ASHTON)LTD,Environmental Services,Director of Place,Hired Transport,,04/02/2015,606.8,,Transport
5189175,REDDIPAK LIMITED,Environmental Services,Director of Place,General Materials,,04/02/2015,"1,048.00",,Unclassifiable
5188168,INSPIREDSPACES TAMESIDE LTD,Asset and Investment Partnership Management,Director of Place,Refurbishment Construction Costs,,04/02/2015,"497,024.63",,Consultancy
5188168,INSPIREDSPACES TAMESIDE LTD,Asset and Investment Partnership Management,Director of Place,Survey/Surveyors Fees,,04/02/2015,"1,967.45",,Consultancy
5188523,INSPIREDSPACES TAMESIDE LTD,Asset and Investment Partnership Management,Director of Place,Telecom,,04/02/2015,570,,Consultancy
5188522,INSPIREDSPACES TAMESIDE LTD,Asset & Investment Partnership Management,Director of Place,Enabling Works,,04/02/2015,"3,255.83",,Consultancy
5188522,INSPIREDSPACES TAMESIDE LTD,Asset & Investment Partnership Management,Director of Place,Survey/Surveyors Fees,,04/02/2015,"14,367.29",,Consultancy
3250493,G B OILS TA CARLTON FUELS,Environmental Services,Director of Place,Diesel Fuel,,04/02/2015,"19,020.28",,Utilities
3250493,JOHNSTON SWEEPERS LTD,Environmental Services,Director of Place,Debits Goods Received,,04/02/2015,149.47,,Environmental Services
5188168,INSPIREDSPACES TAMESIDE LTD,Multiple Heads of Service,Multiple Heads of Service,Refurbishment Construction Costs,,04/02/2015,"9,442.13",,Consultancy
5188522,INSPIREDSPACES TAMESIDE LTD,Multiple Heads of Service,Multiple Heads of Service,Other Works,,04/02/2015,"2,969.29",,Consultancy
5188522,INSPIREDSPACES TAMESIDE LTD,Multiple Heads of Service,Multiple Heads of Service,Security Works,,04/02/2015,"19,702.57",,Consultancy
5188522,INSPIREDSPACES TAMESIDE LTD,Multiple Heads of Service,Multiple Heads of Service,Survey/Surveyors Fees,,04/02/2015,"22,966.30",,Consultancy
5188060,VODAFONE,Multiple Heads of Service,Multiple Strategic Directorates,Telephone Landline Costs,,04/02/2015,"7,283.30",,Information Communication Technology
5189138, ,Multiple Heads of Service,Multiple Strategic Directorates,Claims Settled,Redacted Supplier,04/02/2015,"5,500.00",,Redacted 
5187354,INSTITUTE OF REVENUES RATING AND VALUATION,Exchequer,Director of Finance,Subscriptions,,05/02/2015,"1,050.00",,Financial Services
5188428,ROYAL MAIL GROUP PLC,Exchequer,Director of Finance,Postages,,05/02/2015,"1,348.64",,Mail Services
5185293,CLEAR CHANNEL UK LTD,Governance,Director of Governance,Statutory Advertising,,05/02/2015,"2,600.00",,Facilities & Management Services
5188301,COMPLETE BACKGROUND SCREENING LTD,Governance,Director of Governance,Professional Services,,05/02/2015,"1,007.00",,Unclassifiable
5189172,COMPLETE BACKGROUND SCREENING LTD,Governance,Director of Governance,Professional Services,,05/02/2015,"2,346.60",,Unclassifiable
5189177,TAMESIDE SPORTS TRUST,Governance,Director of Governance,"Marketing, Publicity and Recruitment",,05/02/2015,"1,243.00",,Leisure Services
5188423,NORTH WEST COMMUNITY  SERVICES (GTR M/CR) LTD,Adult Social Care,Director of People,Homecare Fees,,05/02/2015,"2,352.66",,Social Community Care Supplies & Services
5189194,ABLE CARE AND SUPPORT SERVICES LTD,Adult Social Care,Director of People,Homecare Fees,,05/02/2015,"2,116.00",,Social Community Care Supplies & Services
5189120,PAUL'S CARPETS,Childrens Services,Director of People,Fixtures & Fittings Purchase,,05/02/2015,690,,Unclassifiable
5177458,PHONAK UK LIMITED,Education,Director of People,General Equipment Purchase,,05/02/2015,"2,060.00",,Social Community Care
5182315,PHONAK UK LIMITED,Education,Director of People,General Equipment Purchase,,05/02/2015,"2,060.00",,Social Community Care
5187913,TRANSPORT FOR GREATER MANCHESTER,Education,Director of People,Transport Of Post 16 Pupils,,05/02/2015,"71,659.90",,Transport
5188948,RANDSTAD EDUCATION LIMITED,Education,Director of People,Professional Services,,05/02/2015,"1,050.00",,Education
5188949,RANDSTAD EDUCATION LIMITED,Education,Director of People,Agency Staff,,05/02/2015,650,,Education
5188950,RANDSTAD EDUCATION LIMITED,Education,Director of People,Agency Staff,,05/02/2015,575,,Education
5188951,RANDSTAD EDUCATION LIMITED,Education,Director of People,Agency Staff,,05/02/2015,"1,050.00",,Education
5189414,STOCKPORT NHS FOUNDATION TRUST,Education,Director of People,Professional Services,,05/02/2015,"3,333.00",,Medical
5189515,RANDSTAD EDUCATION LIMITED,Education,Director of People,Agency Staff,,05/02/2015,840,,Education
5189531,RICOH UK,Education,Director of People,Photo Print Charges,,05/02/2015,617.47,,Facilities & Management Services
5187395,PEAK VALLEY HOUSING ASSOCIATION,Stronger Communities,Director of People,Supporting People Gross Contract,,05/02/2015,"6,410.40",,Consultancy
5187464,JASON HEPPENSTALL,Stronger Communities,Director of People,General Materials,Business Payment,05/02/2015,"1,000.00",,Education
5189142,B MEOLA,Stronger Communities,Director of People,Professional Entertainment Services,Business Payment,05/02/2015,"1,428.00",,Unclassifiable
5189081,ORANGE PCS,Digital Tameside,Director of Place,Mobile Telephones,,05/02/2015,731.63,,Information Communication Technology
5189082,ORANGE PCS,Digital Tameside,Director of Place,Mobile Telephones,,05/02/2015,"3,038.01",,Information Communication Technology
5189416,ABOUT TAMESIDE,Digital Tameside,Director of Place,Statutory Advertising,,05/02/2015,"1,500.00",,Public Bodies
3250494,DENNIS EAGLE LTD,Environmental Services,Director of Place,General Materials,,05/02/2015,"2,698.73",,Vehicles
3250494,F & G COMMERCIALS (OLDHAM) LIMITED,Environmental Services,Director of Place,General Materials,,05/02/2015,567.98,,Vehicles
3250494,FAUN ZOELLER (UK) LTD,Environmental Services,Director of Place,General Materials,,05/02/2015,464.08,,Vehicles
3250494,HARSH LTD,Environmental Services,Director of Place,General Materials,,05/02/2015,890.26,,Vehicles
3250494,HI-Q TYRESERVICES,Environmental Services,Director of Place,Tyre Costs,,05/02/2015,"1,344.53",,Vehicles
3250494,JOHNSTON SWEEPERS LTD,Environmental Services,Director of Place,General Materials,,05/02/2015,726.26,,Environmental Services
3250494,JUNGHEINRICH UK LIMITED,Environmental Services,Director of Place,General Equipment Purchase,,05/02/2015,"11,900.00",,Building Construction
3250494,PEAK PARTS,Environmental Services,Director of Place,Consumable Materials,,05/02/2015,332.86,,Vehicles
3250494,PEAK PARTS,Environmental Services,Director of Place,General Materials,,05/02/2015,375.02,,Vehicles
3250494,SHB HIRE LTD,Environmental Services,Director of Place,Core Hire,,05/02/2015,"13,694.25",,Vehicles
3250494,STOCKPORT TRUCK CENTRE LTD,Environmental Services,Director of Place,General Materials,,05/02/2015,873.94,,Human Resources
3250494,TERBERG MATEC UK LTD,Environmental Services,Director of Place,General Materials,,05/02/2015,"1,119.52",,Environmental Services
5187329,KILLGERM CHEMICALS LTD,Environmental Services,Director of Place,Pest Control Equipment,,05/02/2015,514.8,,Environmental Services
5187456,INSTITUTE OF CEMETERY & CREMATORIUM MANAGEMENT,Environmental Services,Director of Place,Training Course Costs,,05/02/2015,595,,Financial Services
5187765,F G MARSHALL LTD,Environmental Services,Director of Place,General Materials,,05/02/2015,900,,Cemetery & Crematorium
5187779,N A BROWN LTD,Environmental Services,Director of Place,General Materials,,05/02/2015,"1,539.00",,Unclassifiable
5188660,METRIC GROUP LTD,Environmental Services,Director of Place,Repairs & Maintenance Of Car Park Equipment,,05/02/2015,"2,676.84",,Traffic Management
5187619,CYBER MEDIA SOLUTIONS LTD,Public Health,Director of Public Health,Computer Software,,05/02/2015,"3,000.00",,Information Communication Technology
5187691,CYBER MEDIA SOLUTIONS LTD,Public Health,Director of Public Health,Computer Software,,05/02/2015,"6,850.00",,Information Communication Technology
5188126,YORKSHIRE PURCHASING ORGANISATION,Public Health,Director of Public Health,Artwork,,05/02/2015,41.65,,Education
5188126,YORKSHIRE PURCHASING ORGANISATION,Public Health,Director of Public Health,Educational Equipment,,05/02/2015,"1,042.96",,Education
5189061,EARLY EXCELLENCE LTD,Public Health,Director of Public Health,Artwork,,05/02/2015,152.95,,Consultancy
5189061,EARLY EXCELLENCE LTD,Public Health,Director of Public Health,Educational Equipment,,05/02/2015,"1,779.55",,Consultancy
5187623,HANDICARE LIMITED,Development Growth & Investment,Director of Place,Improvement Grants - Final Mandatory,,05/02/2015,"4,301.00",,Social Community Care
5187828,HANDICARE LIMITED,Development Growth & Investment,Director of Place,Improvement Grants - Final Mandatory,,05/02/2015,"4,109.00",,Social Community Care
5187831,HANDICARE LIMITED,Development Growth & Investment,Director of Place,Improvement Grants - Final Mandatory,,05/02/2015,"4,151.00",,Social Community Care
5188393,THYSSENKRUPP ENCASA LTD,Development Growth & Investment,Director of Place,Improvement Grants - Final Mandatory,,05/02/2015,"1,860.00",,Social Community Care
5188144,KNIGHT KAVANAGH & PAGE,Asset & Investment Partnership Management,Director of Place,Professional Consultancy Services,,05/02/2015,"5,985.00",,Consultancy
3250494,FAUN ZOELLER (UK) LTD,Environmental Services,Director of Place,Debits Goods Received,,05/02/2015,188.92,,Vehicles
3250494,G B OILS TA CARLTON FUELS,Environmental Services,Director of Place,Diesel Fuel,,05/02/2015,"18,488.40",,Utilities
3250494,G B OILS TA CARLTON FUELS,Environmental Services,Director of Place,Gas - Oil Fuel,,05/02/2015,"4,153.00",,Utilities
3250494,GIBSONS GARDEN MACHINERY LIMITED,Environmental Services,Director of Place,Debits Goods Received,,05/02/2015,525.51,,Horticultural
5189370, ,Multiple Heads of Service,Multiple Strategic Directorates,Claims Settled,Redacted Supplier,05/02/2015,"4,000.00",,Redacted 
5189418,HUGHES WALKER SOLICITORS LTD CLIENT ACCOUNT,Multiple Heads of Service,Multiple Strategic Directorates,Claims Settled,,05/02/2015,"8,774.66",,Unclassifiable
5187527,TYNETEC,Adult Social Care,Director of People,It Equipment,,09/02/2015,654.7,,Social Community Care
5187601,CREATIVE SUPPORT LTD,Adult Social Care,Director of People,Homecare Fees,,09/02/2015,"79,445.25",,Social Community Care Supplies & Services
5188444,S & M BUILDERS TAMESIDE LTD,Adult Social Care,Director of People,Cleaning Contractor Costs,,09/02/2015,"1,150.00",,"Works - Construction, Repair & Maintenance"
5188860,AGE UK TAMESIDE,Adult Social Care,Director of People,Age Concern Fees,,09/02/2015,"11,473.22",,Environmental Services
5189139,MRL HEALTHCARE LIMITED,Adult Social Care,Director of People,Homecare Fees,,09/02/2015,"30,000.00",,Social Community Care Supplies & Services
5189354, ,Adult Social Care,Director of People,Contribution to Maintenance Fee Income,Redacted Supplier,09/02/2015,"13,003.08",,Redacted 
5189360, ,Adult Social Care,Director of People,Contribution to Maintenance Fee Income,Redacted Supplier,09/02/2015,"1,343.09",,Redacted 
5189361, ,Adult Social Care,Director of People,Contribution to Maintenance Fee Income,Redacted Supplier,09/02/2015,528.37,,Redacted 
5189525, ,Adult Social Care,Director of People,Day Care Fees,Redacted Supplier,09/02/2015,622.11,,Redacted 
5189590,TAMESIDE ARTS LTD,Adult Social Care,Director of People,Professional Services,,09/02/2015,"1,224.00",,Leisure Services
5189665,THE UNIVERSITY OF MANCHESTER,Adult Social Care,Director of People,Training Course Costs,,09/02/2015,665,,Education
5189699, ,Adult Social Care,Director of People,Day Care Fees,Redacted Supplier,09/02/2015,982.4,,Redacted 
5189788,CREATIVE SUPPORT LTD,Adult Social Care,Director of People,Homecare Fees,,09/02/2015,"13,634.25",,Social Community Care Supplies & Services
5189482,SHREE BHARATIYA MANDAL,Adults Early Intervention,Director of People,Luncheon Club Fees,,09/02/2015,"10,480.00",,Social Community Care Supplies & Services
5189297,INTACT PROJECTS LIMITED,Childrens Services,Director of People,Cash Grants,,09/02/2015,598,,Social Community Care Supplies & Services
5189176,GREG EGAN,Education,Director of People,Additional Hire,Business Payment,09/02/2015,"4,000.00",,Transport
5189470,MACINTYRE CARE,Education,Director of People,Voluntary Organisations Fees,,09/02/2015,"1,388.34",,Education
5189115,COMMUNITY AND VOLUNTARY ACTION TAMESIDE,Strategy & Early Intervention,Director of People,Professional Services,,09/02/2015,"12,500.00",,Financial Services
5182086,THE FURNISHING SERVICE LTD,Stronger Communities,Director of People,Fixtures & Fittings Purchase,,09/02/2015,598.16,,Furniture
5183048,THE FURNISHING SERVICE LTD,Stronger Communities,Director of People,Fixtures & Fittings Purchase,,09/02/2015,"1,055.86",,Furniture
5185932,QUADRANT SECURITY GROUP LTD,Stronger Communities,Director of People,General Materials,,09/02/2015,"1,167.62",,Information Communication Technology
5187530,THE FURNISHING SERVICE LTD,Stronger Communities,Director of People,Fixtures & Fittings Purchase,,09/02/2015,983.84,,Furniture
5187898,SHERIDAN DESIGN,Stronger Communities,Director of People,Printing And Stationery,,09/02/2015,"1,986.00",,Financial Services
5188372,M J DELANEY & CO LTD,Stronger Communities,Director of People,Painting Works,,09/02/2015,"1,908.00",,"Works - Construction, Repair & Maintenance"
5189770,NEW CHARTER HOUSING TRUST GROUP,Stronger Communities,Director of People,Contributions,,09/02/2015,"4,166.66",,Social Community Care Supplies & Services
5169527,QUADRANT SECURITY GROUP LTD,Asset & Investment Partnership Management,Director of Place,Security Equipment,,09/02/2015,"8,619.75",,Information Communication Technology
5171169,QUADRANT SECURITY GROUP LTD,Asset & Investment Partnership Management,Director of Place,Security Equipment,,09/02/2015,"6,011.08",,Information Communication Technology
5177161,QUADRANT SECURITY GROUP LTD,Asset & Investment Partnership Management,Director of Place,Security Equipment,,09/02/2015,"8,619.75",,Information Communication Technology
5187756,INDEPENDENT CATERING SERVICES,Asset & Investment Partnership Management,Director of Place,Purchase Heavy Catering Equipment,,09/02/2015,"1,252.00",,Catering
5187953,QUADRANT SECURITY GROUP LTD,Asset & Investment Partnership Management,Director of Place,Security Equipment,,09/02/2015,"8,619.75",,Information Communication Technology
5189179,QUADRANT SECURITY GROUP LTD,Asset & Investment Partnership Management,Director of Place,General Equipment Repair & Maintenance,,09/02/2015,"7,203.92",,Information Communication Technology
5189180,MOSSLEY PRIVATE HIRE,Asset & Investment Partnership Management,Director of Place,Hired Transport,,09/02/2015,880,,Transport
5189402,R-COM CONSULTING LTD,Asset & Investment Partnership Management,Director of Place,It Equipment,,09/02/2015,"8,060.00",,Public Bodies
5188151,SOUTH LANCASHIRE BAT GROUP,Development Growth & Investment,Director of Place,Professional Consultancy Services,,09/02/2015,"2,400.00",,Environmental Services
5188669,MAMMOTH SIGNS LTD,Development Growth & Investment,Director of Place,"Marketing, Publicity and Recruitment",,09/02/2015,585,,"Works - Construction, Repair & Maintenance"
5188742,SOFTCAT LIMITED,Digital Tameside,Director of Place,Computer Hardware,,09/02/2015,"1,200.00",,Information Communication Technology
5189683,R-COM CONSULTING LTD,Digital Tameside,Director of Place,It Equipment,,09/02/2015,505,,Public Bodies
470602,EAGLE CIVIL ENGINEERING LTD,Environmental Services,Director of Place,Sub-contractor Services,,09/02/2015,"10,617.62",,Highway Equipment & Materials�
470602,P P O'CONNOR,Environmental Services,Director of Place,Sub-contractor Services,Business Payment,09/02/2015,"28,226.87",,Public Bodies
470603,ACORN LIGHTING SERVICES LTD,Environmental Services,Director of Place,Sub-contractor Services,,09/02/2015,"5,535.50",,Highway Equipment & Materials�
470603,AGGREGATE INDUSTRIES UK LIMITED,Environmental Services,Director of Place,General Materials,,09/02/2015,840.2,,Highway Equipment & Materials�
470603,BRAMHALL SURFACING LTD,Environmental Services,Director of Place,Sub-contractor Services,,09/02/2015,"7,360.00",,"Works - Construction, Repair & Maintenance"
470603,CONSIDERATE CONSTRUCTORS SCHEME,Environmental Services,Director of Place,General Materials,,09/02/2015,607.5,,Financial Services
470603,DRAIN ALERT,Environmental Services,Director of Place,Sub-contractor Services,,09/02/2015,"1,111.00",,Environmental Services
470603,FAIRWAY LANDSCAPES LTD,Environmental Services,Director of Place,Sub-contractor Services,,09/02/2015,"3,409.60",,"Works - Construction, Repair & Maintenance"
470603,HARTTRON  LTD,Environmental Services,Director of Place,Sub-contractor Services,,09/02/2015,"4,800.00",,"Works - Construction, Repair & Maintenance"
470603,KENNY BROTHERS,Environmental Services,Director of Place,Sub-contractor Services,,09/02/2015,618.4,,Non 3rd Party spend  
470603,KONSTRUCTA HIRE LIMITED,Environmental Services,Director of Place,Additional Hire,,09/02/2015,784,,"Works - Construction, Repair & Maintenance"
470603,MARCHINGTON STONE,Environmental Services,Director of Place,General Materials,,09/02/2015,"2,505.95",,Building Construction Materials
470603,MET OFFICE,Environmental Services,Director of Place,Professional Services ,,09/02/2015,"3,785.00",,Consultancy
470603,P CASEY (ENVIRO) LTD,Environmental Services,Director of Place,Tipping Facility Fees,,09/02/2015,"1,979.04",,Public Bodies
470603,SECURETASK SECURITY LTD,Environmental Services,Director of Place,Sub-contractor Services,,09/02/2015,"3,290.07",,Facilities & Management Services
470603,SELC IRELAND LTD,Environmental Services,Director of Place,General Materials,,09/02/2015,690,,Highway Equipment & Materials�
470603,SMITH BROS CAER CONAN WHOLESALE LTD,Environmental Services,Director of Place,Discounts Taken,,09/02/2015,-14.31,,Building Construction Materials
470603,TARMAC CENTRAL LIMITED,Environmental Services,Director of Place,General Materials,,09/02/2015,"4,289.15",,Highway Equipment & Materials�
470603,TARMAC CENTRAL LIMITED,Environmental Services,Director of Place,Stores Purchases,,09/02/2015,114.95,,Highway Equipment & Materials�
470603,WOLSELEY UK LTD,Environmental Services,Director of Place,General Materials,,09/02/2015,"1,137.57",,Highway Equipment & Materials�
3250494,M T KAILL(PLANT HIRE)LTD,Environmental Services,Director of Place,Additional Hire,,09/02/2015,"2,460.00",,Vehicles
3250494,M T KAILL(PLANT HIRE)LTD,Environmental Services,Director of Place,Workshop Recharges including Misuse & Damage Costs,,09/02/2015,112.4,,Vehicles
5182516,MPS INSTALLATIONS,Environmental Services,Director of Place,Refreshments,,09/02/2015,850,,Environmental Services
5184133,CBS (NORTH WEST) LTD,Environmental Services,Director of Place,Building Works,,09/02/2015,647.9,,"Works - Construction, Repair & Maintenance"
5187463,MASSEY & HARRIS LTD,Environmental Services,Director of Place,General Equipment Repair & Maintenance,,09/02/2015,"1,910.00",,Sports & Playground Equipment & Maintenance
5187781,NSL LIMITED,Environmental Services,Director of Place,NSL Fees,,09/02/2015,"52,832.59",,Traffic Management
5187884,J FREELEY LTD,Environmental Services,Director of Place,Engineers Works,,09/02/2015,695,,"Works - Construction, Repair & Maintenance"
5189080,MAMMOTH SIGNS LTD,Environmental Services,Director of Place,Signs,,09/02/2015,"1,300.00",,"Works - Construction, Repair & Maintenance"
5189207,GREENSCAPE,Environmental Services,Director of Place,Agency Staff,,09/02/2015,573.42,,"Works - Construction, Repair & Maintenance"
5189216,B A HODCROFT,Environmental Services,Director of Place,Plaques,Business Payment,09/02/2015,913,,Cemetery & Crematorium
5189805,EMO OIL LTD,Environmental Services,Director of Place,Fuel Oil,,09/02/2015,"1,050.75",,Utilities
5184174,COMMUNITY AND VOLUNTARY ACTION TAMESIDE,Public Health,Director of Public Health,Professional Services,,09/02/2015,"11,957.50",,Financial Services
5189073,EARLY EXCELLENCE LTD,Public Health,Director of Public Health,Educational Equipment,,09/02/2015,"14,397.31",,Consultancy
29000016,ADAMS PHARMACY - STALYBRIDGE,Public Health,Director of Public Health,Local Enhanced Services,,09/02/2015,"1,340.00",,Consultancy
470603,COMPASS MINERALS UK LTD,Environmental Services,Director of Place,Debits Goods Received,,09/02/2015,"4,734.75",,Highway Equipment & Materials�
470603,SMITH BROS CAER CONAN WHOLESALE LTD,Environmental Services,Director of Place,Debits Goods Received,,09/02/2015,572.5,,Building Construction Materials
470603,TARMAC CENTRAL LIMITED,Environmental Services,Director of Place,Debits Goods Received,,09/02/2015,"6,748.35",,Highway Equipment & Materials�
5186378,VODAFONE LIMITED,Environmental Services,Director of Place,Engineers Works,,09/02/2015,"3,527.62",,Information Communication Technology
5187053,P MCGUINNESS & CO LTD,Environmental Services,Director of Place,Engineers -External,,09/02/2015,"1,230.50",,"Works - Construction, Repair & Maintenance"
5188360,MACK 4 LIMITED,Development Growth & Investment,Director of Place,Improvement Grants - Final Mandatory,,09/02/2015,"5,330.00",,"Works - Construction, Repair & Maintenance"
5188999,BRIAN OLIVER,Development Growth & Investment,Director of Place,Adaptations - Jobs <#500,Business Payment,09/02/2015,500,,"Works - Construction, Repair & Maintenance"
5189005,S ROCHE,Development Growth & Investment,Director of Place,Improvement Grants - Final Mandatory,Business Payment,09/02/2015,"4,650.00",,Building Construction Materials
5189722,VINCENT OBRIEN (CONSTRUCTION),Development Growth & Investment,Director of Place,Adaptations - Jobs <#500,,09/02/2015,500,,"Works - Construction, Repair & Maintenance"
470602,P P O'CONNOR,Multiple Heads of Service,Multiple Strategic Directorates,Tax Retained Sub Contractors,Business Payment,09/02/2015,"-5,645.38",,Public Bodies
5188742,SOFTCAT LIMITED,Multiple Heads of Service,Multiple Strategic Directorates,It Equipment,,09/02/2015,"29,020.00",,Information Communication Technology
5188924,MINISTER LAW SOLICITORS,Multiple Heads of Service,Multiple Strategic Directorates,Claims Settled,,09/02/2015,"14,000.00",,Unclassifiable
5189565,BT PLC,Multiple Heads of Service,Multiple Strategic Directorates,Telephone Landline Costs,,09/02/2015,661.58,,Information Communication Technology
5189719,HMCTS,Exchequer,Director of Finance,Court Fees,,09/02/2015,640,,Unclassifiable
5187483,LEEDS DIRECT DISTRIBUTION LTD,Exchequer,Director of Finance,Subscriptions,,11/02/2015,"1,950.00",,Information Communication Technology
5188682,TAMESIDE CITIZENS ADVICE BUREAU,Exchequer,Director of Finance,Professional Services,,11/02/2015,"3,562.00",,Social Community Care Supplies & Services
5189170,TEAM NETSOL LTD,Exchequer,Director of Finance,Subscriptions,,11/02/2015,"18,950.00",,Public Bodies
5189530,EXPERIAN LTD,Exchequer,Director of Finance,Subscriptions,,11/02/2015,"4,600.09",,Financial Services
5189902,R & P PRINTERS,Exchequer,Director of Finance,Printing And Stationery,,11/02/2015,"1,006.92",,Facilities & Management Services
5189898,COMPLETE BACKGROUND SCREENING LTD,Governance,Director of Governance,Professional Services,,11/02/2015,"1,322.50",,Unclassifiable
5187688,ADVOCACY EXPERIENCE LTD,Adult Social Care,Director of People,Professional Services,,11/02/2015,"7,518.62",,Social Community Care Supplies & Services
5189483,AGE UK TAMESIDE,Adult Social Care,Director of People,Age Concern Fees,,11/02/2015,"11,473.22",,Environmental Services
5189721, ,Adult Social Care,Director of People,Contribution to Maintenance Fee Income,Redacted Supplier,11/02/2015,659.23,,Redacted 
5189893, ,Adult Social Care,Director of People,Contribution to Maintenance Fee Income,Redacted Supplier,11/02/2015,805.37,,Redacted 
5189906,COMFORT CALL LIMITED,Adult Social Care,Director of People,Homecare Fees,,11/02/2015,"32,246.04",,Medical
5189907,COMFORT CALL LIMITED,Adult Social Care,Director of People,Homecare Fees,,11/02/2015,"32,235.00",,Medical
5189993,CREATIVE SUPPORT LTD,Adult Social Care,Director of People,Homecare Fees,,11/02/2015,"13,634.25",,Social Community Care Supplies & Services
5189995,CREATIVE SUPPORT LTD,Adult Social Care,Director of People,Homecare Fees,,11/02/2015,"13,634.25",,Social Community Care Supplies & Services
5190098,AGE UK TAMESIDE,Adult Social Care,Director of People,Age Concern Fees,,11/02/2015,"11,473.22",,Environmental Services
5190125,ALLIED HEALTHCARE GROUP LTD (MEDICO),Adult Social Care,Director of People,Homecare Fees,,11/02/2015,"13,160.00",,Social Community Care Supplies & Services
5186277,CASSEROLE CLUB (BY FUTURE GOV),Adults Early Intervention,Director of People,Development Monies,,11/02/2015,"15,000.00",,Social & Community
5186278,CASSEROLE CLUB (BY FUTURE GOV),Adults Early Intervention,Director of People,Development Monies,,11/02/2015,"15,000.00",,Social & Community
5189507,AGE UK TAMESIDE,Adults Early Intervention,Director of People,Age Concern Fees,,11/02/2015,"4,660.00",,Environmental Services
5189206,NEW CHARTER HOUSING TRUST GROUP,Childrens Services,Director of People,Planning Fees,,11/02/2015,"3,458.83",,Social Community Care Supplies & Services
5189895,TRIANGLE CARE GROUP,Childrens Services,Director of People,Cash Grants,,11/02/2015,"1,520.93",,Social & Community
5190039,INTACT PROJECTS LIMITED,Childrens Services,Director of People,Cash Grants,,11/02/2015,598,,Social Community Care Supplies & Services
5190049,RADIO CABS (ASHTON)LTD,Childrens Services,Director of People,Hired Transport,,11/02/2015,"1,160.00",,Transport
5190258,ARGOS BUSINESS SOLUTIONS,Childrens Services,Director of People,Cash Grants,,11/02/2015,709.89,,Domestic Goods
5188790,ROCHDALE MBC,Education,Director of People,Voluntary Organisations Fees,,11/02/2015,"3,341.94",,Public Bodies
5189249,THE MANCHESTER COLLEGE,Education,Director of People,Professional Services,,11/02/2015,"7,938.62",,Non 3rd Party spend  
5189939,11KBW LIMITED,Education,Director of People,Legal Fees,,11/02/2015,"2,400.00",,Legal Services
5190047,STAMFORD CARS UK LTD,Education,Director of People,Transport Of Ola Pupils,,11/02/2015,"1,267.50",,Transport
5190117,ACORN CARE & EDUCATION LTD (SALES),Education,Director of People,Voluntary Organisations Fees,,11/02/2015,"10,658.00",,Social Community Care
5188801,ATG LONDON,Strategy & Early Intervention,Director of People,"Activity (Materials, Trips)",,11/02/2015,"1,100.00",,Leisure Services
5190018,CENTER PARCS,Strategy & Early Intervention,Director of People,Personal Needs Entertainments & Holidays,,11/02/2015,"2,604.00",,Unclassifiable
5182109,THE FURNISHING SERVICE LTD,Stronger Communities,Director of People,Fixtures & Fittings Purchase,,11/02/2015,634.22,,Furniture
5186995,MACFARLANE TELESYSTEMS,Stronger Communities,Director of People,Fixtures & Fittings Purchase,,11/02/2015,"13,045.00",,Information Communication Technology
5187398,THE FURNISHING SERVICE LTD,Stronger Communities,Director of People,Fixtures & Fittings Purchase,,11/02/2015,750.24,,Furniture
5189206,NEW CHARTER HOUSING TRUST GROUP,Stronger Communities,Director of People,Supporting People Gross Contract,,11/02/2015,"25,599.75",,Social Community Care Supplies & Services
5189576,HIBBERTS,Stronger Communities,Director of People,Professional Services,,11/02/2015,"5,333.00",,Unclassifiable
5189585,CASH BOX CREDIT UNION,Stronger Communities,Director of People,Emergency Grant Payments,,11/02/2015,"20,000.00",,Public Bodies
5189912,PAYPOINT COLLECTIONS LTD,Stronger Communities,Director of People,Emergency Grant Payments,,11/02/2015,"1,743.00",,Unclassifiable
5190006,ADULLAM HOMES HOUSING ASSOC LTD,Stronger Communities,Director of People,Supporting People Gross Contract,,11/02/2015,"37,226.00",,Social Community Care Supplies & Services
5188196,GETRONICS UNIFIED COMMUNICATIONS UK LIMITED,Asset & Investment Partnership Management,Director of Place,Communications Equipment,,11/02/2015,"2,695.00",,Information Communication Technology
5188340,THE TYRER PARTNERSHIP,Development Growth & Investment,Director of Place,Professional Consultancy Services,,11/02/2015,"2,280.00",,Consultancy
5189011,NPOWER LIMITED,Environmental Services,Director of Place,Electricity,,11/02/2015,"239,992.74",,Utilities
5189759,HMCTS - NORTHAMPTON COUNTY COURT,Environmental Services,Director of Place,Court Fees,,11/02/2015,"6,000.00",,Non 3rd Party spend  
5189915,MANCHESTER DOGS HOME,Environmental Services,Director of Place,Professional Consultancy Services,,11/02/2015,"1,304.71",,Environmental Services
5189920,MANCHESTER DOGS HOME,Environmental Services,Director of Place,Professional Consultancy Services,,11/02/2015,"1,214.73",,Environmental Services
5189921,MANCHESTER DOGS HOME,Environmental Services,Director of Place,Professional Consultancy Services,,11/02/2015,"1,124.75",,Environmental Services
5190029,PARKLANE,Environmental Services,Director of Place,Hired Transport,,11/02/2015,"1,584.00",,Transport
5190030,PARKLANE,Environmental Services,Director of Place,Hired Transport,,11/02/2015,"1,920.00",,Transport
5190031,MR JOHN DELANEY,Environmental Services,Director of Place,Hired Transport,Business Payment,11/02/2015,"1,700.00",,Transport
5190032,MARK HARLOW,Environmental Services,Director of Place,Hired Transport,Business Payment,11/02/2015,600,,Transport
5190034,MARK HARLOW,Environmental Services,Director of Place,Hired Transport,Business Payment,11/02/2015,"1,400.00",,Transport
5190035,MOSSLEY PRIVATE HIRE,Environmental Services,Director of Place,Hired Transport,,11/02/2015,"1,180.00",,Transport
5190036,MOSSLEY PRIVATE HIRE,Environmental Services,Director of Place,Hired Transport,,11/02/2015,"1,279.00",,Transport
5190037,MOSSLEY PRIVATE HIRE,Environmental Services,Director of Place,Hired Transport,,11/02/2015,680,,Transport
5190042,W A MEADOWCROFT,Environmental Services,Director of Place,Hired Transport,Business Payment,11/02/2015,"1,600.00",,Unclassifiable
5190043,B MORRELL,Environmental Services,Director of Place,Hired Transport,Business Payment,11/02/2015,983.25,,Social Community Care
5190044,J & R TAXIS LTD,Environmental Services,Director of Place,Hired Transport,,11/02/2015,"2,196.00",,Transport
5190073,MANCHESTER DOGS HOME,Environmental Services,Director of Place,Professional Consultancy Services,,11/02/2015,"1,214.73",,Environmental Services
5190103,NSL LIMITED,Environmental Services,Director of Place,Training Course Costs,,11/02/2015,600,,Traffic Management
5165232,STOCKPORT NHS FOUNDATION TRUST,Public Health,Director of Public Health,Professional Services,,11/02/2015,602,,Medical
5180411,UNIVERSITY HOSPITAL OF SOUTH MANCHESTER,Public Health,Director of Public Health,Professional Services,,11/02/2015,947.06,,Unclassifiable
5182300,STOCKPORT NHS FOUNDATION TRUST,Public Health,Director of Public Health,Professional Services,,11/02/2015,"1,608.18",,Medical
5184050,THE PENNINE ACUTE HOSPITALS NHS TRUST,Public Health,Director of Public Health,Professional Services,,11/02/2015,"1,607.00",,Medical
5184259,STOCKPORT NHS FOUNDATION TRUST,Public Health,Director of Public Health,Professional Services,,11/02/2015,"1,558.48",,Medical
5188795,GREATER MANCHESTER WEST MENTAL HEALTH FOUNDATION TRUST,Public Health,Director of Public Health,Professional Services,,11/02/2015,"2,760.00",,Medical
5189206,NEW CHARTER HOUSING TRUST GROUP,Public Health,Director of Public Health,Supporting People Gross Contract,,11/02/2015,"13,176.25",,Social Community Care Supplies & Services
5189950,LIFELINE PROJECT LTD (PH),Public Health,Director of Public Health,Professional Services,,11/02/2015,"15,000.00",,Consultancy
5189886,VINCENT OBRIEN (CONSTRUCTION),Development Growth & Investment,Director of Place,Improvement Grants - Final Mandatory,,11/02/2015,"4,133.00",,"Works - Construction, Repair & Maintenance"
5189887,RAYMOND C HARRISON BUILDERS,Development Growth & Investment,Director of Place,Improvement Grants - Final Mandatory,,11/02/2015,"5,003.00",,"Works - Construction, Repair & Maintenance"
5189913,MR JAMES TURLEY T/A R TURLEY PLUMBERS,Development Growth & Investment,Director of Place,Improvement Grants - Final Mandatory,Business Payment,11/02/2015,"4,990.00",,"Works - Construction, Repair & Maintenance"
5189914,MR JAMES TURLEY T/A R TURLEY PLUMBERS,Development Growth & Investment,Director of Place,Improvement Grants - Final Mandatory,Business Payment,11/02/2015,"3,960.00",,"Works - Construction, Repair & Maintenance"
5189916,VINCENT OBRIEN (CONSTRUCTION),Development Growth & Investment,Director of Place,Improvement Grants - Final Mandatory,,11/02/2015,"5,100.00",,"Works - Construction, Repair & Maintenance"
5189918,J P KELSEY PLUMBING & HEATING LTD,Development Growth & Investment,Director of Place,Improvement Grants - Final Mandatory,,11/02/2015,"5,146.00",,Building Construction Materials
5189922,HANDICARE LIMITED,Development Growth & Investment,Director of Place,Improvement Grants - Final Mandatory,,11/02/2015,"1,860.00",,Social Community Care
5189962,S ROCHE,Development Growth & Investment,Director of Place,Improvement Grants - Final Mandatory,Business Payment,11/02/2015,"4,857.00",,Building Construction Materials
5189965,K P DODD CONSTRUCTION LTD,Development Growth & Investment,Director of Place,Improvement Grants - Final Mandatory,,11/02/2015,"6,246.00",,"Works - Construction, Repair & Maintenance"
5187812,COOLSPIRIT LTD,Multiple Heads of Service,Multiple Strategic Directorates,Communications Equipment,,11/02/2015,"27,993.79",,Information Communication Technology
5189542,RICOH UK,Multiple Heads of Service,Multiple Strategic Directorates,Photo Print Charges,,11/02/2015,964,,Facilities & Management Services
5188000,OPAL ENVELOPES LTD.,Exchequer,Director of Finance,Printing And Stationery,,12/02/2015,513.48,,Stationery
5189013,ROYAL MAIL GROUP PLC,Exchequer,Director of Finance,Postages,,12/02/2015,"1,937.21",,Mail Services
5188822,COMPLETE BACKGROUND SCREENING LTD,Governance,Director of Governance,Professional Services,,12/02/2015,"1,274.00",,Unclassifiable
5189897,COMPLETE BACKGROUND SCREENING LTD,Governance,Director of Governance,Professional Services,,12/02/2015,"1,456.00",,Unclassifiable
5190171,ROYAL MAIL GROUP PLC,Governance,Director of Governance,Postages,,12/02/2015,"1,294.61",,Mail Services
5188291,MANCHESTER CITY COUNCIL,Adult Social Care,Director of People,Independent Sector Residential Care Fees,,12/02/2015,"14,416.00",,Financial Services
5188332,PENNINE CARE NHS TRUST,Adult Social Care,Director of People,Professional Services,,12/02/2015,"7,296.00",,Social Community Care Supplies & Services
5189089,STOCKPORT CP  SOCIETY,Adult Social Care,Director of People,Day Centre Fees,,12/02/2015,805.08,,Social Community Care Supplies & Services
5189489,ABLE CARE AND SUPPORT SERVICES LTD,Adult Social Care,Director of People,Homecare Fees,,12/02/2015,"2,128.00",,Social Community Care Supplies & Services
5188386,EARLY YEARS 2 PRIMARY LLP,Education,Director of People,Training Course Costs,,12/02/2015,"1,290.00",,Human Resources
5188412,EASTERN LEADERSHIP CENTRE,Education,Director of People,Training Course Costs,,12/02/2015,"2,375.00",,Charities and Voluntary Organisations
5188997,VISION FOR EDUCATION LIMITED,Education,Director of People,Agency Staff,,12/02/2015,900,,Education
5189041,KLEEN STRIKE UK LTD,Education,Director of People,Photo Print Charges,,12/02/2015,522.8,,Information Communication Technology
5189755,GLM ACCESSIBLE TRANSPORT,Education,Director of People,Additional Hire,,12/02/2015,950,,Transport
5189768,STREETDANCE AND FITNESS,Education,Director of People,"Activity (Materials, Trips)",,12/02/2015,"1,080.00",,Leisure Services
5189837,RANDSTAD EDUCATION LIMITED,Education,Director of People,Agency Staff,,12/02/2015,"1,050.00",,Education
5189858,RANDSTAD EDUCATION LIMITED,Education,Director of People,Agency Staff,,12/02/2015,650,,Education
5189860,RANDSTAD EDUCATION LIMITED,Education,Director of People,Agency Staff,,12/02/2015,"1,050.00",,Education
5189861,RANDSTAD EDUCATION LIMITED,Education,Director of People,Agency Staff,,12/02/2015,"1,050.00",,Education
5189862,RANDSTAD EDUCATION LIMITED,Education,Director of People,Agency Staff,,12/02/2015,575,,Education
5189882,HOWARD COOK,Education,Director of People,Professional Services,Business Payment,12/02/2015,680,,Unclassifiable
5189930,VISION FOR EDUCATION LIMITED,Education,Director of People,Agency Staff,,12/02/2015,900,,Education
5190305,DR MARGARET SMITH,Education,Director of People,Professional Services,Business Payment,12/02/2015,800,,Medical
5190317,AUTISM INITIATIVES,Education,Director of People,Voluntary Organisations Fees,,12/02/2015,"9,328.08",,Social Community Care
5188414,POSITIVE STEPS OLDHAM,Strategy & Early Intervention,Director of People,Professional Services,,12/02/2015,"38,219.18",,Unclassifiable
5187636,THE FURNISHING SERVICE LTD,Stronger Communities,Director of People,Fixtures & Fittings Purchase,,12/02/2015,936.13,,Furniture
5180575,GETRONICS UNIFIED COMMUNICATIONS UK LIMITED,Digital Tameside,Director of Place,Computer Software,,12/02/2015,"1,643.22",,Information Communication Technology
5188145,INSIGHT DIRECT (UK)LTD,Digital Tameside,Director of Place,Repairs & Maintenance Of General Office Equipment,,12/02/2015,"2,918.08",,Information Communication Technology
5189118,ADONI SOFTWARE,Digital Tameside,Director of Place,Computer Software,,12/02/2015,"2,525.00",,Information Communication Technology
5190119,R-COM CONSULTING LTD,Digital Tameside,Director of Place,Computer Hardware Maintenance Costs,,12/02/2015,"3,493.21",,Public Bodies
3250495,ARNOLD PLANT HIRE LTD,Environmental Services,Director of Place,Additional Hire,,12/02/2015,"1,034.00",,Vehicles
3250495,ATS EUROMASTER LTD,Environmental Services,Director of Place,Tyre Costs,,12/02/2015,"4,435.73",,Vehicles
3250495,BPP TRANSPORT ENGINEERS LTD,Environmental Services,Director of Place,Tyre Costs,,12/02/2015,"2,052.12",,Transport
3250495,BURNT TREE GROUP LIMITED,Environmental Services,Director of Place,Additional Hire,,12/02/2015,"4,738.40",,Vehicles
3250495,BURNT TREE GROUP LIMITED,Environmental Services,Director of Place,Core Hire,,12/02/2015,"1,254.00",,Vehicles
3250495,DIRECT FILTER/ PARTS SUPPLY,Environmental Services,Director of Place,General Materials,,12/02/2015,125.22,,Vehicles
3250495,ENZA MOTORS LIMITED,Environmental Services,Director of Place,General Materials,,12/02/2015,967.42,,Vehicles
3250495,FREIGHT TRANSPORT ASSOCIATION,Environmental Services,Director of Place,Vehicle Inspection/Testing Costs,,12/02/2015,873.49,,Vehicles
3250495,HI-Q TYRESERVICES,Environmental Services,Director of Place,Tyre Costs,,12/02/2015,"3,487.20",,Vehicles
3250495,OMC FORD OLDHAM,Environmental Services,Director of Place,General Materials,,12/02/2015,601.15,,Vehicles
3250495,SHB HIRE LTD,Environmental Services,Director of Place,Core Hire,,12/02/2015,807.83,,Vehicles
3250495,SHB HIRE LTD,Environmental Services,Director of Place,Workshop Recharges including Misuse & Damage Costs,,12/02/2015,0,,Vehicles
3250495,TERBERG MATEC UK LTD,Environmental Services,Director of Place,General Materials,,12/02/2015,693.93,,Environmental Services
5184391,CBS (NORTH WEST) LTD,Environmental Services,Director of Place,Building Works,,12/02/2015,521.85,,"Works - Construction, Repair & Maintenance"
5188129,KILLGERM CHEMICALS LTD,Environmental Services,Director of Place,Pest Control Equipment,,12/02/2015,515.5,,Environmental Services
5188422,HGV TRAINING CENTRE,Environmental Services,Director of Place,Training Course Costs,,12/02/2015,791,,Human Resources
5188504,JONES LIGHTING LTD,Environmental Services,Director of Place,Street Lighting Works,,12/02/2015,233.92,,Highway Equipment & Materials�
5188680,HARTTRON  LTD,Environmental Services,Director of Place,Street Lighting Works,,12/02/2015,"2,250.00",,"Works - Construction, Repair & Maintenance"
5188681,HARTTRON  LTD,Environmental Services,Director of Place,Street Lighting Works,,12/02/2015,"2,750.00",,"Works - Construction, Repair & Maintenance"
5189044,PATROL,Environmental Services,Director of Place,Court Fees,,12/02/2015,"2,903.45",,Unclassifiable
5187941,GREATER MANCHESTER WEST MENTAL HEALTH FOUNDATION TRUST,Public Health,Director of Public Health,Professional Services,,12/02/2015,"1,104.00",,Medical
5188039,DR CAROLINE WHITE,Public Health,Director of Public Health,Training Course Costs,Business Payment,12/02/2015,550,,Human Resources
5188172,ASCO EDUCATIONAL SUPPLIES LTD,Public Health,Director of Public Health,Educational Equipment,,12/02/2015,600.6,,Education
5188303,BOLTON NHS FOUNDATION TRUST,Public Health,Director of Public Health,Professional Services,,12/02/2015,"1,318.00",,Unclassifiable
5188567,YORKSHIRE PURCHASING ORGANISATION,Public Health,Director of Public Health,Educational Equipment,,12/02/2015,267.5,,Education
5188567,YORKSHIRE PURCHASING ORGANISATION,Public Health,Director of Public Health,Fixtures & Fittings Purchase,,12/02/2015,504.95,,Education
5189484,AGE UK TAMESIDE,Public Health,Director of Public Health,Professional Services,,12/02/2015,"19,950.00",,Environmental Services
5189488,AGE UK TAMESIDE,Public Health,Director of Public Health,Professional Services,,12/02/2015,"5,000.00",,Environmental Services
5189903,OFF THE RECORD,Public Health,Director of Public Health,Professional Services,,12/02/2015,"26,696.25",,Social Community Care Supplies & Services
5188504,JONES LIGHTING LTD,Environmental Services,Director of Place,Street Lighting Works,,12/02/2015,463.98,,Highway Equipment & Materials�
5188506,JONES LIGHTING LTD,Environmental Services,Director of Place,Street Lighting Works,,12/02/2015,697.9,,Highway Equipment & Materials�
5188391,POLLOCK LIFTS LTD,Development Growth & Investment,Director of Place,Improvement Grants - Final Mandatory,,12/02/2015,"7,447.00",,Unclassifiable
5189885,MR JAMES TURLEY T/A R TURLEY PLUMBERS,Development Growth & Investment,Director of Place,Improvement Grants - Final Mandatory,Business Payment,12/02/2015,"3,000.00",,"Works - Construction, Repair & Maintenance"
5189890,JACKSON & TAYLOR LTD,Development Growth & Investment,Director of Place,Improvement Grants - Final Mandatory,,12/02/2015,"4,770.00",,"Works - Construction, Repair & Maintenance"
3250495,CONCEPT OILS LIMITED,Environmental Services,Director of Place,Debits Goods Received,,12/02/2015,890.24,,Unclassifiable
3250495,DIRECT FILTER/ PARTS SUPPLY,Environmental Services,Director of Place,Debits Goods Received,,12/02/2015,428.46,,Vehicles
3250495,HARSH LTD,Environmental Services,Director of Place,Debits Goods Received,,12/02/2015,"1,961.79",,Vehicles
5188531,TOPMARK CLAIMS MANAGEMENT LTD,Multiple Heads of Service,Multiple Strategic Directorates,Reimbursement Paid To Insurers,,12/02/2015,"10,000.00",,Financial Services
5189731,HMCTS,Exchequer,Director of Finance,Court Fees,,12/02/2015,"1,640.00",,Unclassifiable
5190025,REMPLOY LIMITED,Adult Social Care,Director of People,Agency Staff,,13/02/2015,598,,Education
5190026,REMPLOY LIMITED,Adult Social Care,Director of People,Agency Staff,,13/02/2015,747.5,,Education
5190027,REMPLOY LIMITED,Adult Social Care,Director of People,Agency Staff,,13/02/2015,598,,Education
5190246,MRL HEALTHCARE LIMITED,Adult Social Care,Director of People,Homecare Fees,,13/02/2015,"30,000.00",,Social Community Care Supplies & Services
5190350,LIME TRAVEL,Childrens Services,Director of People,Hired Transport,,13/02/2015,"1,600.00",,Human Resources
5190377,MICHAEL ADLARD,Childrens Services,Director of People,Hired Transport,Business Payment,13/02/2015,686.5,,Transport
5190435,PATRICIA BUXTON,Childrens Services,Director of People,Professional Services,Business Payment,13/02/2015,"1,104.39",,Medical
5190209,RICOH UK,Education,Director of People,Non-Authority Accommodation Rental,,13/02/2015,520.1,,Facilities & Management Services
5190211,RICOH UK,Education,Director of People,Printing And Stationery,,13/02/2015,726.89,,Facilities & Management Services
5190213,RICOH UK,Education,Director of People,Printing And Stationery,,13/02/2015,547.95,,Facilities & Management Services
5190341,LIME TRAVEL,Education,Director of People,Transport Of Pupils,,13/02/2015,"1,729.00",,Human Resources
5190342,LIME TRAVEL,Education,Director of People,Transport Of Pupils,,13/02/2015,"1,729.00",,Human Resources
5190343,MOSSLEY PRIVATE HIRE,Education,Director of People,Transport Of Pupils,,13/02/2015,"2,250.00",,Transport
5190344,LIME TRAVEL,Education,Director of People,Transport Of Ola Pupils,,13/02/2015,"2,050.00",,Human Resources
5190345,LIME TRAVEL,Education,Director of People,Transport Of Pupils,,13/02/2015,"1,820.00",,Human Resources
5190346,MOSSLEY PRIVATE HIRE,Education,Director of People,Transport Of Pupils,,13/02/2015,"1,950.00",,Transport
5190348,LIME TRAVEL,Education,Director of People,Transport Of Ola Pupils,,13/02/2015,"1,730.00",,Human Resources
5190349,MR JOHN DELANEY,Education,Director of People,Transport Of Pupils,Business Payment,13/02/2015,"1,900.00",,Transport
5190351,MR JOHN DELANEY,Education,Director of People,Transport Of Pupils,Business Payment,13/02/2015,"1,620.00",,Transport
5190354,MR JOHN DELANEY,Education,Director of People,Transport Of Post 16 Pupils,Business Payment,13/02/2015,"1,800.00",,Transport
5190355,MR JOHN DELANEY,Education,Director of People,Transport Of Pupils,Business Payment,13/02/2015,"1,900.00",,Transport
5190357,DAVID CROZIER,Education,Director of People,Transport Of Pupils,Business Payment,13/02/2015,"1,782.00",,Unclassifiable
5190365,DAVID CROZIER,Education,Director of People,Transport Of Post 16 Pupils,Business Payment,13/02/2015,"2,074.00",,Unclassifiable
5190367,DAVID CROZIER,Education,Director of People,Transport Of Post 16 Pupils,Business Payment,13/02/2015,"1,824.00",,Unclassifiable
5190368,GLENN CAWTHORN,Education,Director of People,Transport Of Pupils,Business Payment,13/02/2015,"1,121.00",,Transport
5190370,DAVID CROZIER,Education,Director of People,Transport Of Post 16 Pupils,Business Payment,13/02/2015,"1,824.00",,Unclassifiable
5190372,DAVID CROZIER,Education,Director of People,Transport Of Pupils,Business Payment,13/02/2015,"1,444.00",,Unclassifiable
5190378,W A MEADOWCROFT,Education,Director of People,Transport Of Pupils,Business Payment,13/02/2015,"1,200.00",,Unclassifiable
5190379,G M GREEN,Education,Director of People,Transport Of Pupils,Business Payment,13/02/2015,"1,330.00",,Unclassifiable
5190382,B MORRELL,Education,Director of People,Transport Of Pupils,Business Payment,13/02/2015,"2,000.00",,Social Community Care
5190385,MICHAEL ADLARD,Education,Director of People,Transport Of Pupils,Business Payment,13/02/2015,532.5,,Transport
5190387,ROYALE MINICOACHES,Education,Director of People,Transport Of Pupils,,13/02/2015,"1,900.00",,Transport
5190483,PRIESTNALL SCHOOL,Education,Director of People,Other Local Authorities Fees,,13/02/2015,"1,267.00",,Unclassifiable
5190490,REDDISH VALE TECHNOLOGY COLLEGE,Education,Director of People,Other Local Authorities Fees,,13/02/2015,"1,267.00",,Public Bodies
5189469,NORTHENDEN TRAVEL LTD,Strategy & Early Intervention,Director of People,Parent Contact Costs,,13/02/2015,623,,Human Resources
5189469,NORTHENDEN TRAVEL LTD,Strategy & Early Intervention,Director of People,Staff Travel Costs,,13/02/2015,120,,Human Resources
5189937,STOCKPORT NHS FOUNDATION TRUST,Strategy & Early Intervention,Director of People,Professional Services,,13/02/2015,"2,529.00",,Medical
5190077, ,Strategy & Early Intervention,Director of People,Personal Needs Entertainments & Holidays,Redacted Supplier,13/02/2015,736.28,,Redacted 
5190347,MOSSLEY PRIVATE HIRE,Strategy & Early Intervention,Director of People,Hired Transport,,13/02/2015,905,,Transport
5190352,LIME TRAVEL,Strategy & Early Intervention,Director of People,Hired Transport,,13/02/2015,590,,Human Resources
5190496,LIME TRAVEL,Strategy & Early Intervention,Director of People,Hired Transport,,13/02/2015,"2,346.00",,Human Resources
5189753,THRESHOLD HOUSING PROJECT,Stronger Communities,Director of People,Supporting People Gross Contract,,13/02/2015,"14,666.66",,Housing Management
5189754,THRESHOLD HOUSING PROJECT,Stronger Communities,Director of People,Supporting People Gross Contract,,13/02/2015,"30,833.33",,Housing Management
5189764,NEW CHARTER HOUSING TRUST GROUP,Stronger Communities,Director of People,Supporting People Gross Contract,,13/02/2015,"20,022.16",,Social Community Care Supplies & Services
5189772,NEW CHARTER HOUSING TRUST GROUP,Stronger Communities,Director of People,Housing Aid Function,,13/02/2015,"33,740.57",,Social Community Care Supplies & Services
5190498,PAYPOINT COLLECTIONS LTD,Stronger Communities,Director of People,Emergency Grant Payments,,13/02/2015,"1,938.00",,Unclassifiable
5190321,GVA GRIMLEY LTD,Development Growth & Investment,Director of Place,Legal Fees,,13/02/2015,"7,200.00",,Facilities & Management Services
5190434,THIRTYNINE,Development Growth & Investment,Director of Place,Legal Fees,,13/02/2015,"1,000.00",,Legal Services
5187470,MAMMOTH SIGNS LTD,Environmental Services,Director of Place,Vehicle Repairs & Maintenance,,13/02/2015,"6,500.00",,"Works - Construction, Repair & Maintenance"
5183794,THOMPSON & COOKE SOLICITORS AND NOTARY,Environmental Services,Director of Place,Fees,,13/02/2015,"1,100.00",,Unclassifiable
5190339,CYCLESCHEME LTD,Multiple Heads of Service,Multiple Strategic Directorates,General Equipment Purchase,,13/02/2015,716.65,,Unclassifiable
5189832,ROYAL MAIL GROUP PLC,Exchequer,Director of Finance,Postages,,16/02/2015,"1,284.21",,Mail Services
5190210,TAMESIDE CITIZENS ADVICE BUREAU,Exchequer,Director of Finance,Professional Services,,16/02/2015,"3,624.00",,Social Community Care Supplies & Services
5190562,POSTAGE BY PHONE PITNEY BOWES LTD,Exchequer,Director of Finance,Postages, ,16/02/2015,"40,000.00",,Mail Services
5189532,REGENDA LIMITED,Adult Social Care,Director of People,Non-Authority Accommodation Rental,,16/02/2015,"16,796.49",,Housing Management
5189533,REGENDA LIMITED,Adult Social Care,Director of People,Non-Authority Accommodation Rental,,16/02/2015,"2,169.66",,Housing Management
5190111,DOMAIN CARE NORTH WEST LTD,Adult Social Care,Director of People,Homecare Fees,,16/02/2015,799.5,,Social Community Care
5190142,DOMAIN CARE NORTH WEST LTD,Adult Social Care,Director of People,Homecare Fees,,16/02/2015,"1,440.00",,Social Community Care
5190144,DOMAIN CARE NORTH WEST LTD,Adult Social Care,Director of People,Homecare Fees,,16/02/2015,639.6,,Social Community Care
5190287,PROGRESS CARE HOUSING ASSOCIATION LIMITED,Adult Social Care,Director of People,Non-Authority Accommodation Rental,,16/02/2015,"5,316.11",,Housing Management
5190360,STAMFORD PROPERTIES,Adult Social Care,Director of People,Non-Authority Accommodation Rental,,16/02/2015,"1,017.43",,Unclassifiable
5190361,NORTHERN PROPERTIES LTD,Adult Social Care,Director of People,Non-Authority Accommodation Rental,,16/02/2015,"1,847.29",,Facilities & Management Services
5190362,WESLEY PROPERTIES (NORTHERN) LTD,Adult Social Care,Director of People,Non-Authority Accommodation Rental,,16/02/2015,"1,369.89",,Facilities & Management Services
5190364,HAMILTON PROPERTIES,Adult Social Care,Director of People,Non-Authority Accommodation Rental,,16/02/2015,"1,575.20",,Housing Management
5190366,STAMFORD PROPERTIES,Adult Social Care,Director of People,Non-Authority Accommodation Rental,,16/02/2015,"2,552.73",,Unclassifiable
5190369,HOMES FOR LIFE LTD,Adult Social Care,Director of People,Non-Authority Accommodation Rental,,16/02/2015,"37,222.56",,Unclassifiable
5190373,HUGH MASON PROPERTIES LIMITED,Adult Social Care,Director of People,Non-Authority Accommodation Rental,,16/02/2015,"2,471.40",,Facilities & Management Services
5190374,HUGH MASON PROPERTIES LIMITED,Adult Social Care,Director of People,Non-Authority Accommodation Rental,,16/02/2015,"2,207.18",,Facilities & Management Services
5190376,HUGH MASON PROPERTIES LIMITED,Adult Social Care,Director of People,Non-Authority Accommodation Rental,,16/02/2015,"2,207.18",,Facilities & Management Services
5190380,CROFT INVESTMENTS LTD,Adult Social Care,Director of People,Non-Authority Accommodation Rental,,16/02/2015,"2,024.61",,Social Community Care Supplies & Services
5190554, ,Adult Social Care,Director of People,Contribution to Maintenance Fee Income,Redacted Supplier,16/02/2015,"1,013.98",,Redacted 
5190566, ,Adult Social Care,Director of People,Contribution to Maintenance Fee Income,Redacted Supplier,16/02/2015,776.71,,Redacted 
5190665,GREENSCAPE,Adult Social Care,Director of People,Tree Planting Programme,,16/02/2015,663.69,,"Works - Construction, Repair & Maintenance"
5190619,MOSSLEY PRIVATE HIRE,Strategy & Early Intervention,Director of People,Hired Transport,,16/02/2015,540,,Transport
5188593,CONCEPT,Stronger Communities,Director of People,General Equipment Purchase,,16/02/2015,"6,100.00",,Unclassifiable
470604,AGGREGATE INDUSTRIES UK LIMITED,Environmental Services,Director of Place,General Materials,,16/02/2015,"2,807.98",,Highway Equipment & Materials�
470604,AGGREGATE INDUSTRIES UK LIMITED,Environmental Services,Director of Place,Sub-contractor Services,,16/02/2015,"83,706.44",,Highway Equipment & Materials�
470604,ARCO LIMITED,Environmental Services,Director of Place,General Materials,,16/02/2015,"4,310.86",,Clothing
470604,BLOK N MESH UK LTD,Environmental Services,Director of Place,General Materials,,16/02/2015,"1,727.00",,Building Construction Materials
470604,CIVICA UK LTD,Environmental Services,Director of Place,General Materials,,16/02/2015,"26,565.00",,Information Communication Technology
470604,EAGLE CIVIL ENGINEERING LTD,Environmental Services,Director of Place,General Materials,,16/02/2015,66,,Highway Equipment & Materials�
470604,EAGLE CIVIL ENGINEERING LTD,Environmental Services,Director of Place,Sub-contractor Services,,16/02/2015,"2,148.12",,Highway Equipment & Materials�
470604,KEN TAYLOR SUPPLIES LTD,Environmental Services,Director of Place,General Materials,,16/02/2015,"2,196.90",,Unclassifiable
470604,MARCHINGTON STONE,Environmental Services,Director of Place,General Materials,,16/02/2015,"2,773.59",,Building Construction Materials
470604,MARWOOD ELECTRICAL CO,Environmental Services,Director of Place,General Materials,,16/02/2015,"5,296.52",,Highway Equipment & Materials�
470604,PREMIER WASTE (UK) LTD,Environmental Services,Director of Place,General Materials,,16/02/2015,300,,Environmental Services
470604,PREMIER WASTE (UK) LTD,Environmental Services,Director of Place,Sub-contractor Services,,16/02/2015,898,,Environmental Services
470604,TARMAC CENTRAL LIMITED,Environmental Services,Director of Place,General Materials,,16/02/2015,"1,232.18",,Highway Equipment & Materials�
470604,TARMAC CENTRAL LIMITED,Environmental Services,Director of Place,Stores Purchases,,16/02/2015,52.74,,Highway Equipment & Materials�
470604,VALE  ENGINEERING(YORK)LTD,Environmental Services,Director of Place,General Materials,,16/02/2015,"2,400.00",,Unclassifiable
470604,WOLSELEY UK LTD,Environmental Services,Director of Place,General Materials,,16/02/2015,"1,250.00",,Highway Equipment & Materials�
470604,ZODION LTD,Environmental Services,Director of Place,General Materials,,16/02/2015,527.38,,Highway Equipment & Materials�
5186664,GENERAL UTILITIES NORTHWEST LTD,Environmental Services,Director of Place,Professional Services,,16/02/2015,"1,520.00",,Environmental Services
5190607,STAMFORD CARS UK LTD,Environmental Services,Director of Place,Hired Transport,,16/02/2015,518,,Transport
5190609,STAMFORD CARS UK LTD,Environmental Services,Director of Place,Hired Transport,,16/02/2015,760,,Transport
5190612,STAMFORD CARS UK LTD,Environmental Services,Director of Place,Hired Transport,,16/02/2015,630,,Transport
5190614,STAMFORD CARS UK LTD,Environmental Services,Director of Place,Hired Transport,,16/02/2015,"1,045.00",,Transport
5189568,PENNINE CARE NHS FOUNDATION TRUST,Public Health,Director of Public Health,Professional Services,,16/02/2015,"256,203.00",,Medical
29000021,ADAMS PHARMACY - STALYBRIDGE,Public Health,Director of Public Health,Local Enhanced Services,,16/02/2015,538,,Consultancy
29000021,S2 ENTERPRISE LTD T/A PENNY MEADOW PHARMACY,Public Health,Director of Public Health,Local Enhanced Services,,16/02/2015,924,,Consultancy
470604,ARCO LIMITED,Environmental Services,Director of Place,Debits Goods Received,,16/02/2015,581.11,,Clothing
470604,KEN TAYLOR SUPPLIES LTD,Environmental Services,Director of Place,Debits Goods Received,,16/02/2015,104.25,,Unclassifiable
470604,MARWOOD ELECTRICAL CO,Environmental Services,Director of Place,Debits Goods Received,,16/02/2015,"2,552.50",,Highway Equipment & Materials�
470604,TARMAC CENTRAL LIMITED,Environmental Services,Director of Place,Debits Goods Received,,16/02/2015,"1,907.48",,Highway Equipment & Materials�
470604,ZODION LTD,Environmental Services,Director of Place,Debits Goods Received,,16/02/2015,790.5,,Highway Equipment & Materials�
5189015,THYSSENKRUPP ENCASA LTD,Development Growth & Investment,Director of Place,Improvement Grants - Final Mandatory,,16/02/2015,"4,339.00",,Social Community Care
470604,KEN TAYLOR SUPPLIES LTD,Multiple Heads of Service,Multiple Heads of Service,General Materials,,16/02/2015,143.8,,Unclassifiable
5188415,COOLSPIRIT LTD,Multiple Heads of Service,Multiple Strategic Directorates,Communications Equipment,,16/02/2015,"75,047.52",,Information Communication Technology
5189599,WIGAN MBC,Adult Social Care,Director of People,General Expenditure,,18/02/2015,"25,280.00",,Unclassifiable
5188587,CHRISTINE  FURZER,Adult Social Care,Director of People,Professional Consultancy Services,Business Payment,18/02/2015,790,,Unclassifiable
5188777,GILLIAN PAPAIOANNOU,Adult Social Care,Director of People,Professional Consultancy Services,Business Payment,18/02/2015,"1,214.65",,Unclassifiable
5190815,CARE UK HOMECARE,Adult Social Care,Director of People,Homecare Fees,,18/02/2015,"29,187.00",,Social Community Care Supplies & Services
5190816,CARE UK HOMECARE,Adult Social Care,Director of People,Homecare Fees,,18/02/2015,"30,342.00",,Social Community Care Supplies & Services
5190817,CARE UK HOMECARE,Adult Social Care,Director of People,Homecare Fees,,18/02/2015,"30,408.00",,Social Community Care Supplies & Services
5190818,CARE UK HOMECARE,Adult Social Care,Director of People,Homecare Fees,,18/02/2015,"30,421.00",,Social Community Care Supplies & Services
5190834,TAMESIDE ARTS LTD,Adult Social Care,Director of People,Professional Services,,18/02/2015,"1,224.00",,Leisure Services
5190835,"TAMESIDE, OLDHAM AND GLOSSOP MIND",Adult Social Care,Director of People,Professional Services,,18/02/2015,"2,448.00",,Social Community Care Supplies & Services
5190870,COMMUNITY AND VOLUNTARY ACTION TAMESIDE,Adults Early Intervention,Director of People,Development Monies,,18/02/2015,"1,217.81",,Financial Services
5189932,UNITED UTILITIES WATER PLC,Education,Director of People,Metered Water Costs,,18/02/2015,"2,390.05",,Utilities
5190190,UNITED UTILITIES WATER PLC,Education,Director of People,Metered Water Costs,,18/02/2015,"2,306.66",,Utilities
5190442,CREAMLINE DAIRIES LTD,Education,Director of People,Milk For Under 5 Year Olds,,18/02/2015,"1,517.10",,Catering 
5190443,CREAMLINE DAIRIES LTD,Education,Director of People,Milk For Under 5 Year Olds,,18/02/2015,"1,487.76",,Catering 
5190444,CREAMLINE DAIRIES LTD,Education,Director of People,Milk For Under 5 Year Olds,,18/02/2015,"2,021.78",,Catering 
5190485,CREAMLINE DAIRIES (STOCKPORT) LTD,Education,Director of People,Milk For Under 5 Year Olds,,18/02/2015,"7,663.72",,Catering 
5190487,CREAMLINE DAIRIES (STOCKPORT) LTD,Education,Director of People,Milk For Under 5 Year Olds,,18/02/2015,"12,141.15",,Catering 
5190488,CREAMLINE DAIRIES (STOCKPORT) LTD,Education,Director of People,Milk For Under 5 Year Olds,,18/02/2015,"10,144.57",,Catering 
5189650,THE CHESHIRE & GREATER MANCHESTER COMMUNITY REHABILITATION COMPANY LTD,Stronger Communities,Director of People,Consumable Materials,,18/02/2015,"10,690.84",,Unclassifiable
5190521,THE FURNISHING SERVICE LTD,Stronger Communities,Director of People,Fixtures & Fittings Purchase,,18/02/2015,772.47,,Furniture
5190527,THE FURNISHING SERVICE LTD,Stronger Communities,Director of People,Fixtures & Fittings Purchase,,18/02/2015,846.3,,Furniture
5190649,THEATREROTTO PRODUCTIONS,Stronger Communities,Director of People,Professional Entertainment Services,,18/02/2015,650,,Unclassifiable
5190657,NEW CHARTER HOUSING TRUST GROUP,Stronger Communities,Director of People,Supporting People Gross Contract,,18/02/2015,"71,284.00",,Social Community Care Supplies & Services
5190704,LEISA GRAY,Stronger Communities,Director of People,Professional Entertainment Services,Business Payment,18/02/2015,629.6,,Unclassifiable
5190743,PAYPOINT COLLECTIONS LTD,Stronger Communities,Director of People,Emergency Grant Payments,,18/02/2015,"1,405.00",,Unclassifiable
5190901,CASH BOX CREDIT UNION LTD,Stronger Communities,Director of People,Professional Services,,18/02/2015,"5,333.00",,Charities and Voluntary Organisations
5189151,CORONA ENERGY RETAIL 4 LIMITED,Asset & Investment Partnership Management,Director of Place,Gas,,18/02/2015,"3,958.38",,Utilities
5189154,CORONA ENERGY RETAIL 4 LIMITED,Asset & Investment Partnership Management,Director of Place,Gas,,18/02/2015,597.72,,Utilities
5189156,CORONA ENERGY RETAIL 4 LIMITED,Asset & Investment Partnership Management,Director of Place,Gas,,18/02/2015,746.57,,Utilities
5189158,CORONA ENERGY RETAIL 4 LIMITED,Asset & Investment Partnership Management,Director of Place,Gas,,18/02/2015,"6,106.87",,Utilities
5189159,CORONA ENERGY RETAIL 4 LIMITED,Asset & Investment Partnership Management,Director of Place,Gas,,18/02/2015,"2,728.21",,Utilities
5189160,CORONA ENERGY RETAIL 4 LIMITED,Asset & Investment Partnership Management,Director of Place,Gas,,18/02/2015,549.81,,Utilities
5189162,CORONA ENERGY RETAIL 4 LIMITED,Asset & Investment Partnership Management,Director of Place,Gas,,18/02/2015,545.51,,Utilities
5189164,CORONA ENERGY RETAIL 4 LIMITED,Asset & Investment Partnership Management,Director of Place,Gas,,18/02/2015,"2,527.44",,Utilities
5189165,CORONA ENERGY RETAIL 4 LIMITED,Asset & Investment Partnership Management,Director of Place,Gas,,18/02/2015,"2,356.64",,Utilities
5189186,UNITED UTILITIES WATER PLC,Asset & Investment Partnership Management,Director of Place,Metered Water Costs,,18/02/2015,"1,747.01",,Utilities
5189189,CORONA ENERGY RETAIL 4 LIMITED,Asset & Investment Partnership Management,Director of Place,Gas,,18/02/2015,712.76,,Utilities
5189241,CORONA ENERGY RETAIL 4 LIMITED,Asset & Investment Partnership Management,Director of Place,Gas,,18/02/2015,"1,945.96",,Utilities
5189244,CORONA ENERGY RETAIL 4 LIMITED,Asset & Investment Partnership Management,Director of Place,Gas,,18/02/2015,"1,986.86",,Utilities
5189246,CORONA ENERGY RETAIL 4 LIMITED,Asset & Investment Partnership Management,Director of Place,Gas,,18/02/2015,609.64,,Utilities
5189248,CORONA ENERGY RETAIL 4 LIMITED,Asset & Investment Partnership Management,Director of Place,Gas,,18/02/2015,"1,466.36",,Utilities
5189261,CORONA ENERGY RETAIL 4 LIMITED,Asset & Investment Partnership Management,Director of Place,Gas,,18/02/2015,"1,877.19",,Utilities
5189262,CORONA ENERGY RETAIL 4 LIMITED,Asset & Investment Partnership Management,Director of Place,Gas,,18/02/2015,"2,892.40",,Utilities
5189264,CORONA ENERGY RETAIL 4 LIMITED,Asset & Investment Partnership Management,Director of Place,Gas,,18/02/2015,"2,548.82",,Utilities
5189267,CORONA ENERGY RETAIL 4 LIMITED,Asset & Investment Partnership Management,Director of Place,Gas,,18/02/2015,827.09,,Utilities
5189268,CORONA ENERGY RETAIL 4 LIMITED,Asset & Investment Partnership Management,Director of Place,Gas,,18/02/2015,504,,Utilities
5189269,CORONA ENERGY RETAIL 4 LIMITED,Asset & Investment Partnership Management,Director of Place,Gas,,18/02/2015,586.49,,Utilities
5189271,CORONA ENERGY RETAIL 4 LIMITED,Asset & Investment Partnership Management,Director of Place,Gas,,18/02/2015,871.5,,Utilities
5189274,CORONA ENERGY RETAIL 4 LIMITED,Asset & Investment Partnership Management,Director of Place,Gas,,18/02/2015,545.73,,Utilities
5189277,CORONA ENERGY RETAIL 4 LIMITED,Asset & Investment Partnership Management,Director of Place,Gas,,18/02/2015,921.46,,Utilities
5189279,UNITED UTILITIES WATER PLC,Asset & Investment Partnership Management,Director of Place,Metered Water Costs,,18/02/2015,"1,269.62",,Utilities
5189280,CORONA ENERGY RETAIL 4 LIMITED,Asset & Investment Partnership Management,Director of Place,Gas,,18/02/2015,922.82,,Utilities
5189281,CORONA ENERGY RETAIL 4 LIMITED,Asset & Investment Partnership Management,Director of Place,Gas,,18/02/2015,"2,089.97",,Utilities
5189284,CORONA ENERGY RETAIL 4 LIMITED,Asset & Investment Partnership Management,Director of Place,Gas,,18/02/2015,875.83,,Utilities
5189285,CORONA ENERGY RETAIL 4 LIMITED,Asset & Investment Partnership Management,Director of Place,Gas,,18/02/2015,"1,100.75",,Utilities
5189290,CORONA ENERGY RETAIL 4 LIMITED,Asset & Investment Partnership Management,Director of Place,Gas,,18/02/2015,"2,025.47",,Utilities
5189291,CORONA ENERGY RETAIL 4 LIMITED,Asset & Investment Partnership Management,Director of Place,Gas,,18/02/2015,912.74,,Utilities
5189295,CORONA ENERGY RETAIL 4 LIMITED,Asset & Investment Partnership Management,Director of Place,Gas,,18/02/2015,614.6,,Utilities
5189446,PEAK VALLEY HOUSING ASSOCIATION,Asset & Investment Partnership Management,Director of Place,Authority Accommodation Rental,,18/02/2015,"54,000.00",,Consultancy
5190056,INSPIREDSPACES TAMESIDE (PROJECTCO2) LTD,Asset & Investment Partnership Management,Director of Place,Free School Meal Costs,,18/02/2015,"18,765.70",,"Works - Construction, Repair & Maintenance"
5190056,INSPIREDSPACES TAMESIDE (PROJECTCO2) LTD,Asset & Investment Partnership Management,Director of Place,Professional Services,,18/02/2015,770.14,,"Works - Construction, Repair & Maintenance"
5190056,INSPIREDSPACES TAMESIDE (PROJECTCO2) LTD,Asset & Investment Partnership Management,Director of Place,Refreshments,,18/02/2015,"2,669.92",,"Works - Construction, Repair & Maintenance"
5190056,INSPIREDSPACES TAMESIDE (PROJECTCO2) LTD,Asset & Investment Partnership Management,Director of Place,Unitary Charge Payments,,18/02/2015,"818,530.29",,"Works - Construction, Repair & Maintenance"
5190056,INSPIREDSPACES TAMESIDE (PROJECTCO2) LTD,Asset & Investment Partnership Management,Director of Place,Utilities,,18/02/2015,"51,989.39",,"Works - Construction, Repair & Maintenance"
5190106,INSPIREDSPACES TAMESIDE LTD,Asset & Investment Partnership Management,Director of Place,Free School Meal Costs,,18/02/2015,"3,120.10",,Consultancy
5190106,INSPIREDSPACES TAMESIDE LTD,Asset & Investment Partnership Management,Director of Place,Non-Authority Accommodation Rental,,18/02/2015,"16,105.53",,Consultancy
5190106,INSPIREDSPACES TAMESIDE LTD,Asset & Investment Partnership Management,Director of Place,Refreshments,,18/02/2015,"2,048.32",,Consultancy
5190106,INSPIREDSPACES TAMESIDE LTD,Asset & Investment Partnership Management,Director of Place,Utilities,,18/02/2015,"9,234.75",,Consultancy
5190107,INSPIREDSPACES TAMESIDE LTD,Asset & Investment Partnership Management,Director of Place,Agency Staff,,18/02/2015,"38,551.00",,Consultancy
5190108,INSPIREDSPACES TAMESIDE(PROJECTCO1) LTD,Asset & Investment Partnership Management,Director of Place,Free School Meal Costs,,18/02/2015,"9,091.75",,"Works - Construction, Repair & Maintenance"
5190108,INSPIREDSPACES TAMESIDE(PROJECTCO1) LTD,Asset & Investment Partnership Management,Director of Place,Project Costs,,18/02/2015,"493,850.25",,"Works - Construction, Repair & Maintenance"
5190108,INSPIREDSPACES TAMESIDE(PROJECTCO1) LTD,Asset & Investment Partnership Management,Director of Place,Unitary Charge Payments,,18/02/2015,-33.31,,"Works - Construction, Repair & Maintenance"
5190108,INSPIREDSPACES TAMESIDE(PROJECTCO1) LTD,Asset & Investment Partnership Management,Director of Place,Utilities,,18/02/2015,"30,618.05",,"Works - Construction, Repair & Maintenance"
5190109,PYRAMID SCHOOLS (TAMESIDE) LTD,Asset & Investment Partnership Management,Director of Place,PFI FM Fees and Insurance Costs,,18/02/2015,"7,999.76",,"Works - Construction, Repair & Maintenance"
5190109,PYRAMID SCHOOLS (TAMESIDE) LTD,Asset & Investment Partnership Management,Director of Place,Unitary Charge Payments,,18/02/2015,"264,934.21",,"Works - Construction, Repair & Maintenance"
5190109,PYRAMID SCHOOLS (TAMESIDE) LTD,Asset & Investment Partnership Management,Director of Place,Utilities,,18/02/2015,"16,204.36",,"Works - Construction, Repair & Maintenance"
5190165,UNITED UTILITIES WATER PLC,Asset & Investment Partnership Management,Director of Place,Metered Water Costs,,18/02/2015,"1,747.01",,Utilities
5190179,UNITED UTILITIES WATER PLC,Asset & Investment Partnership Management,Director of Place,Metered Water Costs,,18/02/2015,777.26,,Utilities
5190181,UNITED UTILITIES WATER PLC,Asset & Investment Partnership Management,Director of Place,Metered Water Costs,,18/02/2015,516.21,,Utilities
5190182,UNITED UTILITIES WATER PLC,Asset & Investment Partnership Management,Director of Place,Metered Water Costs,,18/02/2015,645.39,,Utilities
5190183,UNITED UTILITIES WATER PLC,Asset & Investment Partnership Management,Director of Place,Metered Water Costs,,18/02/2015,490.99,,Utilities
5190189,UNITED UTILITIES WATER PLC,Asset & Investment Partnership Management,Director of Place,Metered Water Costs,,18/02/2015,"1,009.91",,Utilities
5190272,TOTAL GAS & POWER LIMITED,Asset & Investment Partnership Management,Director of Place,Gas,,18/02/2015,745.03,,Utilities
5190701,ADDLESHAW GODDARD,Asset & Investment Partnership Management,Director of Place,Legal Fees,,18/02/2015,"9,024.29",,Legal Services
5158731,GREATER MANCHESTER WASTE DISPOSAL AUTH.,Environmental Services,Director of Place,GMC Waste Disposal Levy,,18/02/2015,"1,478,750.00",,Environmental Services
5188159,KEEPMOAT REGENERATION LTD,Environmental Services,Director of Place,Professional Services,,18/02/2015,"2,861.70",,"Works - Construction, Repair & Maintenance"
5190183,UNITED UTILITIES WATER PLC,Environmental Services,Director of Place,Metered Water Costs,,18/02/2015,341.25,,Utilities
5190391,FURNACE CONSTRUCTION CREMATORS LIMITED,Environmental Services,Director of Place,Building Works,,18/02/2015,859.66,,"Works - Construction, Repair & Maintenance"
5190392,FURNACE CONSTRUCTION CREMATORS LIMITED,Environmental Services,Director of Place,Building Works,,18/02/2015,"2,882.40",,"Works - Construction, Repair & Maintenance"
5190606,POST OFFICE,Environmental Services,Director of Place,Motor Licence Costs,,18/02/2015,"1,930.00",,Mail Services
5190848,MILLENNIUM BUSINESS SYSTEMS LTD,Public Health,Director of Public Health,Audio/Visual Equipment/Aids,,18/02/2015,715,,Cemetery & Crematorium
5184360,SICO EUROPE LIMITED,Asset and Investment Partnership Management,Director of Place,Adaptations - Small Jobs,,18/02/2015,819,,Furniture
5188413,SICO EUROPE LIMITED,Asset and Investment Partnership Management,Director of Place,Adaptations - Small Jobs,,18/02/2015,682,,Furniture
5190107,INSPIREDSPACES TAMESIDE LTD,Asset and Investment Partnership Management,Director of Place,Computer Hardware,,18/02/2015,"2,512.27",,Consultancy
5190726,SICO EUROPE LIMITED,Asset and Investment Partnership Management,Director of Place,Adaptations - Small Jobs,,18/02/2015,"1,180.00",,Furniture
5190728,SICO EUROPE LIMITED,Asset and Investment Partnership Management,Director of Place,Adaptations - Small Jobs,,18/02/2015,720,,Furniture
5190573,GREATER MANCHESTER COMBINED AUTHORITY,Environmental Services,Director of Place,Engineers -External, ,18/02/2015,"67,016.31",,Unclassifiable
5176892,UPDATA INFRASTRUCTURE UK LTD,Multiple Heads of Service,Multiple Strategic Directorates,Communications Equipment,,18/02/2015,660,,Consultancy
5189782,UPDATA INFRASTRUCTURE UK LTD,Multiple Heads of Service,Multiple Strategic Directorates,Communications Equipment,,18/02/2015,660,,Consultancy
5190093,UPDATA INFRASTRUCTURE UK LTD,Multiple Heads of Service,Multiple Strategic Directorates,Communications Equipment,,18/02/2015,660,,Consultancy
5190128,UPDATA INFRASTRUCTURE UK LTD,Multiple Heads of Service,Multiple Strategic Directorates,Communications Equipment,,18/02/2015,660,,Consultancy
5190683,FREECLAIM SOLICITORS,Multiple Heads of Service,Multiple Strategic Directorates,Claims Settled,,18/02/2015,"16,000.00",,Legal Services
5190747,FREECLAIM SOLICITORS,Multiple Heads of Service,Multiple Strategic Directorates,Claims Settled,,18/02/2015,"5,344.00",,Legal Services
5189718,SALFORD CITY COUNCIL,Adult Social Care,Director of People,General Expenditure,,19/02/2015,"7,885.51",,Consultancy
5188998,UNIVERSITY OF SALFORD,Stronger Communities,Director of People,Contributions,,19/02/2015,"23,512.50",,Education
5189055,UNIVERSITY OF SALFORD,Stronger Communities,Director of People,Contributions,,19/02/2015,"23,512.50",,Education
5190931,DROYLSDEN YOUTH CENTRE,Stronger Communities,Director of People,Adaptations - Small Jobs,,19/02/2015,"2,695.44",,Financial Services
5190299,NORTHWEST EVERGREEN LTD,Corporate Costs,Corporate Costs,Contributions,,19/02/2015,"25,000.00",,Unclassifiable
5189634,ROYAL MAIL GROUP PLC,Exchequer,Director of Finance,Postages,,19/02/2015,"1,971.36",,Mail Services
5190878,MARSTON GROUP LTD,Exchequer,Director of Finance,Professional Services,,19/02/2015,"1,411.09",,Legal Services
5191031,THE CO-OP BANK PLC,Exchequer,Director of Finance,Fees,,19/02/2015,2,,Financial Services
5191032,THE CO-OP BANK PLC,Exchequer,Director of Finance,Fees,,19/02/2015,2,,Financial Services
5191032,THE CO-OP BANK PLC,Finance,Director of Finance,Training Course Costs,,19/02/2015,50,,Financial Services
5189382,QUALITY 4 EARLY YEARS,Governance,Director of Governance,Training Course Costs,,19/02/2015,680,,Human Resources
5190447,CBS (NORTH WEST) LTD,Governance,Director of Governance,Professional Services,,19/02/2015,"1,823.00",,"Works - Construction, Repair & Maintenance"
5190794,PRD PROPERTY SERVICES LTD,Governance,Director of Governance,Legal Fees,,19/02/2015,"3,870.00",,Facilities & Management Services
5190988,COMPLETE BACKGROUND SCREENING LTD,Governance,Director of Governance,Professional Services,,19/02/2015,"2,827.00",,Unclassifiable
5191032,THE CO-OP BANK PLC,Governance,Director of Governance,Training Course Costs,,19/02/2015,299,,Financial Services
5189434,ALLIANCE DISPOSABLES LTD,Adult Social Care,Director of People,Cleaning Materials,,19/02/2015,816.4,,Cleaning & Janitorial
5190326,COMFORT CALL LIMITED,Adult Social Care,Director of People,Homecare Fees,,19/02/2015,"26,928.50",,Medical
5190525,FIRWOOD CARPETS DENTON,Adult Social Care,Director of People,Fixtures & Fittings Purchase,,19/02/2015,"2,135.16",,Building Construction Materials
5190686,MRL HEALTHCARE LIMITED,Adult Social Care,Director of People,Homecare Fees,,19/02/2015,"30,000.00",,Social Community Care Supplies & Services
5190946,ALLIED HEALTHCARE GROUP LTD (MEDICO),Adult Social Care,Director of People,Homecare Fees,,19/02/2015,"12,852.00",,Social Community Care Supplies & Services
5190957,ROYAL MENCAP SOCIETY,Adult Social Care,Director of People,Voluntary Organisations Fees,,19/02/2015,"7,344.00",,Social Community Care Supplies & Services
5190924,COMMUNITY AND VOLUNTARY ACTION TAMESIDE,Adults Early Intervention,Director of People,Development Monies,,19/02/2015,"7,994.50",,Financial Services
5190925,COMMUNITY AND VOLUNTARY ACTION TAMESIDE,Adults Early Intervention,Director of People,Development Monies,,19/02/2015,"6,557.00",,Financial Services
5191063,KHUSHAMDID,Adults Early Intervention,Director of People,Luncheon Club Fees,Business Payment,19/02/2015,"3,787.50",,Unclassifiable
5191031,THE CO-OP BANK PLC,Childrens Services,Director of People,Parent Contact Costs,,19/02/2015,41,,Financial Services
5191032,THE CO-OP BANK PLC,Childrens Services,Director of People,Parent Contact Costs,,19/02/2015,28,,Financial Services
5187832,EDUCATION LANGUAGE LTD,Education,Director of People,Training Course Costs,,19/02/2015,"1,500.00",,CONSULTANCY
5190016,VISION FOR EDUCATION LIMITED,Education,Director of People,Agency Staff,,19/02/2015,900,,Education
5190973,RANDSTAD EDUCATION LIMITED,Education,Director of People,Agency Staff,,19/02/2015,"1,050.00",,Education
5190974,RANDSTAD EDUCATION LIMITED,Education,Director of People,Agency Staff,,19/02/2015,"1,050.00",,Education
5190975,RANDSTAD EDUCATION LIMITED,Education,Director of People,Agency Staff,,19/02/2015,575,,Education
5190976,RANDSTAD EDUCATION LIMITED,Education,Director of People,Agency Staff,,19/02/2015,650,,Education
5191032,THE CO-OP BANK PLC,Education,Director of People,Postages,,19/02/2015,"2,399.26",,Financial Services
5189604,TRIBAL EDUCATION LTD,Strategy & Early Intervention,Director of People,Computer Software,,19/02/2015,"2,100.00",,Education
5191031,THE CO-OP BANK PLC,Strategy & Early Intervention,Director of People,Training Course Costs,,19/02/2015,127,,Financial Services
5188746,TOM FORREST,Stronger Communities,Director of People,Professional Services,Business Payment,19/02/2015,"2,500.00",,Unclassifiable
5189633,REGENDA LIMITED,Stronger Communities,Director of People,Supporting People Gross Contract,,19/02/2015,"3,482.50",,Housing Management
5190844,TAMESIDE SPORTS TRUST,Stronger Communities,Director of People,Professional Sports Coaching Services,,19/02/2015,"10,717.00",,Leisure Services
5190919,DREAMLAND CARPETS & LAMINATE FLOORING,Stronger Communities,Director of People,Fixtures & Fittings Purchase,,19/02/2015,821,,Building Construction Materials
5190920,DREAMLAND CARPETS & LAMINATE FLOORING,Stronger Communities,Director of People,Fixtures & Fittings Purchase,,19/02/2015,700.83,,Building Construction Materials
5191004,BROWNS BOOKS FOR STUDENTS,Stronger Communities,Director of People,Purchase Books,,19/02/2015,909.88,,Education
5190879,PROFILE SECURITY SERVICES LIMITED,Asset & Investment Partnership Management,Director of Place,Security Services,,19/02/2015,"2,296.76",,Facilities & Management Services
5184233,LASERLIFE,Development Growth & Investment,Director of Place,Computer Hardware Maintenance Costs,,19/02/2015,"1,288.00",,Information Communication Technology
5188655,IDOX SOFTWARE LIMITED,Development Growth & Investment,Director of Place,Computer Hardware Maintenance Costs,,19/02/2015,"1,990.00",,Information Communication Technology
3250496,F & G COMMERCIALS (OLDHAM) LIMITED,Environmental Services,Director of Place,General Materials,,19/02/2015,"2,602.77",,Vehicles
3250496,F G ROWLAND LTD,Environmental Services,Director of Place,Core Hire,,19/02/2015,845,,Vehicles
3250496,HI-Q TYRESERVICES,Environmental Services,Director of Place,General Materials,,19/02/2015,93.5,,Vehicles
3250496,HI-Q TYRESERVICES,Environmental Services,Director of Place,Tyre Costs,,19/02/2015,488.15,,Vehicles
3250496,I H S HOSEMASTER,Environmental Services,Director of Place,General Materials,,19/02/2015,"1,497.79",,Unclassifiable
3250496,SVR,Environmental Services,Director of Place,Additional Hire,,19/02/2015,945,,Charities and Voluntary Organisations
3250496,TOLLAND PRECISION ENGINEERING LTD,Environmental Services,Director of Place,General Materials,,19/02/2015,501.75,,"Works - Construction, Repair & Maintenance"
5188957,CRAEMER UK LTD,Environmental Services,Director of Place,Refuse Domestic Bin Purchases,,19/02/2015,"10,704.00",,Environmental Services
5188958,CRAEMER UK LTD,Environmental Services,Director of Place,Refuse Domestic Bin Purchases,,19/02/2015,"13,915.20",,Environmental Services
5188960,CRAEMER UK LTD,Environmental Services,Director of Place,Refuse Domestic Bin Purchases,,19/02/2015,"13,915.20",,Environmental Services
5190399,GREENSCAPE,Environmental Services,Director of Place,Engineers Works,,19/02/2015,695,,"Works - Construction, Repair & Maintenance"
5188989,MANCHESTER CAMERATA LTD,Public Health,Director of Public Health,Professional Services,,19/02/2015,"8,000.00",,Leisure Services
5190433,11KBW LIMITED,Environmental Services,Director of Place,Legal Fees,,19/02/2015,"1,845.00",,Legal Services
5191000,VINCENT OBRIEN (CONSTRUCTION),Development Growth & Investment,Director of Place,Improvement Grants - Final Mandatory,,19/02/2015,"2,800.00",,"Works - Construction, Repair & Maintenance"
5189955,ROGER HANNAH & CO,Asset & Investment Partnership Management,Director of Place,Professional Services,,19/02/2015,"4,250.00",,Human Resources
3250496,F. R. SHARROCK LIMITED,Environmental Services,Director of Place,Debits Goods Received,,19/02/2015,756.56,,Public Bodies
3250496,G B OILS TA CARLTON FUELS,Environmental Services,Director of Place,Debits Goods Received,,19/02/2015,"18,553.50",,Utilities
3250496,G B OILS TA CARLTON FUELS,Environmental Services,Director of Place,Diesel Fuel,,19/02/2015,"16,457.40",,Utilities
5190629,PAULS TOOL EMPORIUM LTD,Multiple Heads of Service,Multiple Heads of Service,Horticultural Equipment,,19/02/2015,691.8,,Building Construction Materials
5190849,HMRC,Multiple Heads of Service,Multiple Strategic Directorates,Tax Paid Sub Contractors,,19/02/2015,"3,209.02",,Unclassifiable
5188756,TARGET ESOLUTIONS LTD,Exchequer,Director of Finance,Professional Consultancy Services,,23/02/2015,"6,436.50",,Unclassifiable
5189956,KALAMAZOO SECURE SOLUTIONS LTD,Finance,Director of Finance,Postages,,23/02/2015,12.95,,Facilities & Management Services
5189956,KALAMAZOO SECURE SOLUTIONS LTD,Finance,Director of Finance,Printing And Stationery,,23/02/2015,775.82,,Facilities & Management Services
5189226,TAMESIDE TRAINING CONSORTIUM,Governance,Director of Governance,Training Course Costs,,23/02/2015,"1,050.00",,Human Resources
5189873,TAMESIDE HOSPITAL NHS FOUNDATION TRUST,Governance,Director of Governance,Professional Consultancy Services,,23/02/2015,"2,451.00",,Medical
5191061,BLACK & WHITE PROMOTIONAL PRINT SERVICES,Governance,Director of Governance,Printing And Stationery,,23/02/2015,"2,710.00",,Facilities & Management Services
460294,AMARA CARE LTD,Adult Social Care,Director of People,Residential Home Long Stay Fees,,23/02/2015,"5,860.00",,Social Community Care Supplies & Services
460294,AUDEN HOUSE RESIDENTIAL HOME,Adult Social Care,Director of People,Residential Home Long Stay Fees,,23/02/2015,"6,783.76",,Social Community Care Supplies & Services
460294,BALMORAL HOMES,Adult Social Care,Director of People,Residential Home Long Stay Fees,,23/02/2015,"2,431.94",,Social Community Care Supplies & Services
460294,BAMFORD GRANGE N/H,Adult Social Care,Director of People,Residential Home Long Stay Fees,,23/02/2015,"2,837.43",,Social Community Care Supplies & Services
460294,BEECHFIELD LODGE,Adult Social Care,Director of People,Residential Home Long Stay Fees,,23/02/2015,"4,045.72",,Social Community Care
460294,BELMONT PARKHILL LTD,Adult Social Care,Director of People,Residential Home Long Stay Fees,,23/02/2015,"33,760.48",,Social Community Care Supplies & Services
460294,BLACKCLIFFE LTD,Adult Social Care,Director of People,Residential Home Long Stay Fees,,23/02/2015,"55,532.71",,Social Community Care Supplies & Services
460294,BOURNE HOUSE RESIDENTIAL HOME,Adult Social Care,Director of People,Residential Home Long Stay Fees,,23/02/2015,"26,196.07",,Social Community Care Supplies & Services
460294,BOWERFIELD COURT,Adult Social Care,Director of People,Residential Home Long Stay Fees,,23/02/2015,"2,964.00",,Social Community Care
460294,BOWLACRE HOME,Adult Social Care,Director of People,Residential Home Long Stay Fees,,23/02/2015,"16,498.50",,Social Community Care Supplies & Services
460294,BROOKVALE,Adult Social Care,Director of People,Residential Home Long Stay Fees,,23/02/2015,"6,818.84",,Social Community Care Supplies & Services
460294,BROUGHTON HOUSE HOME FOR  EX-SERVICE PERSONNEL,Adult Social Care,Director of People,Residential Home Long Stay Fees,,23/02/2015,909.41,,Social Community Care Supplies & Services
460294,CAMBIAN LEARNING DISABILITIES MIDLANDS LTD,Adult Social Care,Director of People,Residential Home Long Stay Fees,,23/02/2015,"19,580.97",,Social Community Care Supplies & Services
460294,CANTERBURY CARE HOMES LTD,Adult Social Care,Director of People,Residential Home Long Stay Fees,,23/02/2015,985.22,,Social Community Care Supplies & Services
460294,CARE UK LEARNING DISABILITIES SERVS LTD,Adult Social Care,Director of People,Residential Home Long Stay Fees,,23/02/2015,"10,809.26",,Public Bodies
460294,CEDAR LODGE,Adult Social Care,Director of People,Residential Home Long Stay Fees,,23/02/2015,"1,272.51",,Social Community Care
460294,CHADDERTON TOTAL CAREUNIT LTD,Adult Social Care,Director of People,Residential Home Long Stay Fees,,23/02/2015,"5,355.12",,Social Community Care Supplies & Services
460294,CHARNLEY HOUSE LIMITED,Adult Social Care,Director of People,Residential Home Long Stay Fees,,23/02/2015,"15,135.36",,Social Community Care Supplies & Services
460294,CLARKSON HOUSE,Adult Social Care,Director of People,Residential Home Long Stay Fees,,23/02/2015,"17,335.52",,Social Community Care Supplies & Services
460294,CLEARWATER CARE,Adult Social Care,Director of People,Residential Home Long Stay Fees,,23/02/2015,"10,195.71",,Social Community Care
460294,CLIFFEMOUNT COMMUNITY CARE,Adult Social Care,Director of People,Residential Home Long Stay Fees,,23/02/2015,"20,241.34",,Public Bodies
460294,COMPASS CARE LIMITED,Adult Social Care,Director of People,Residential Home Long Stay Fees,,23/02/2015,"4,462.18",,Social Community Care Supplies & Services
460294,DANSHELL HEALTHCARE LTD,Adult Social Care,Director of People,Residential Home Long Stay Fees,,23/02/2015,"7,560.00",,Social Community Care
460294,EHC MOSTON GRANGE LTD,Adult Social Care,Director of People,Residential Home Long Stay Fees,,23/02/2015,"34,511.26",,Social Community Care Supplies & Services
460294,ELDER HOMES GROUP,Adult Social Care,Director of People,Residential Home Long Stay Fees,,23/02/2015,443.56,,Social Community Care Supplies & Services
460294,ELDER HOMES GROUP,Adult Social Care,Director of People,Residential Home Long Stay Fees,,23/02/2015,"62,189.19",,Social Community Care Supplies & Services
460294,EQUALIBRIUM HEALTH CARE,Adult Social Care,Director of People,Residential Home Long Stay Fees,,23/02/2015,"10,806.60",,Social Community Care Supplies & Services
460294,ERNELESTHORP NURSING HOME,Adult Social Care,Director of People,Residential Home Long Stay Fees,,23/02/2015,"1,610.84",,Social Community Care Supplies & Services
460294,FAIRFIELD VIEW CARE LTD,Adult Social Care,Director of People,Residential Home Long Stay Fees,,23/02/2015,"32,903.74",,Social Community Care Supplies & Services
460294,FERN BANK,Adult Social Care,Director of People,Residential Home Long Stay Fees,,23/02/2015,"19,065.94",,Social Community Care Supplies & Services
460294,FOUR SEASONS (DFK) LTD T/AS ASHURST PARK CARE HOME,Adult Social Care,Director of People,Residential Home Long Stay Fees,,23/02/2015,"1,118.26",,Social Community Care
460294,FOUR SEASONS HEALTH CARE,Adult Social Care,Director of People,Residential Home Long Stay Fees,,23/02/2015,"24,161.28",,Social Community Care Supplies & Services
460294,GLENROYD CARE HOME,Adult Social Care,Director of People,Residential Home Long Stay Fees,,23/02/2015,"1,613.92",,Social Community Care Supplies & Services
460294,GRANGEFIELD,Adult Social Care,Director of People,Residential Home Long Stay Fees,,23/02/2015,995.68,,Social Community Care
460294,HANDSALE LTD T/A TREELANDS,Adult Social Care,Director of People,Residential Home Long Stay Fees,,23/02/2015,"1,769.21",,Social Community Care Supplies & Services
460294,HATTON GRANGE,Adult Social Care,Director of People,Residential Home Long Stay Fees,,23/02/2015,"48,323.00",,Social Community Care
460294,HC ONE OF A KIND - GUIDE LANE,Adult Social Care,Director of People,Residential Home Long Stay Fees,,23/02/2015,"27,424.69",,Social Community Care
460294,HC ONE OF A KIND - KINGS PARK,Adult Social Care,Director of People,Residential Home Long Stay Fees,,23/02/2015,"19,707.01",,Social Community Care
460294,HEATHCOTES CARE,Adult Social Care,Director of People,Residential Home Long Stay Fees,,23/02/2015,"12,332.00",,Social Community Care
460294,LANGFIELD CARE HOME,Adult Social Care,Director of People,Residential Home Long Stay Fees,,23/02/2015,"1,210.86",,Unclassifiable
460294,LAUREL BANK RESIDENTIAL CARE HOME LTD,Adult Social Care,Director of People,Residential Home Long Stay Fees,,23/02/2015,"9,466.43",,Social Community Care Supplies & Services
460294,LOUTH CARE LTD,Adult Social Care,Director of People,Residential Home Long Stay Fees,,23/02/2015,"1,616.00",,Social Community Care
460294,LYNWOOD,Adult Social Care,Director of People,Residential Home Long Stay Fees,,23/02/2015,"3,683.29",,Social Community Care Supplies & Services
460294,MARINERS COURT CARE HOME,Adult Social Care,Director of People,Residential Home Long Stay Fees,,23/02/2015,"4,685.96",,Public Bodies
460294,MARPLE DALE HALL LTD,Adult Social Care,Director of People,Residential Home Long Stay Fees,,23/02/2015,"1,110.11",,Social Community Care Supplies & Services
460294,MERIDIAN HEALTHCARE LTD,Adult Social Care,Director of People,Residential Home Long Stay Fees,,23/02/2015,"1,330.68",,Social Community Care Supplies & Services
460294,MERIDIAN HEALTHCARE LTD,Adult Social Care,Director of People,Residential Home Long Stay Fees,,23/02/2015,"742,274.38",,Social Community Care Supplies & Services
460294,MOSS COTTAGE NURSING HOME,Adult Social Care,Director of People,Residential Home Long Stay Fees,,23/02/2015,887.12,,Social Community Care Supplies & Services
460294,MOSS COTTAGE NURSING HOME,Adult Social Care,Director of People,Residential Home Long Stay Fees,,23/02/2015,"22,110.08",,Social Community Care Supplies & Services
460294,MRS P RUGGEE,Adult Social Care,Director of People,Residential Home Long Stay Fees,Business Payment,23/02/2015,"4,343.37",,Social Community Care Supplies & Services
460294,OAKWOOD CARE CENTRE,Adult Social Care,Director of People,Residential Home Long Stay Fees,,23/02/2015,"8,680.18",,Social Community Care Supplies & Services
460294,PENDLEBURY CARE HOMES LTD,Adult Social Care,Director of People,Residential Home Long Stay Fees,,23/02/2015,"1,668.52",,Social Community Care Supplies & Services
460294,PENNINE CARE CENTRE,Adult Social Care,Director of People,Residential Home Long Stay Fees,,23/02/2015,"3,305.96",,Social Community Care Supplies & Services
460294,POLEBANK HALL RESIDENTIAL CARE HOME LTD,Adult Social Care,Director of People,Residential Home Long Stay Fees,,23/02/2015,"4,952.23",,Social Community Care
460294,PROGRESS ADULT SERVICES LIMITED,Adult Social Care,Director of People,Residential Home Long Stay Fees,,23/02/2015,"13,797.21",,Social Community Care
460294,RIVERSIDE CARE CENTRE,Adult Social Care,Director of People,Residential Home Long Stay Fees,,23/02/2015,443.56,,Social Community Care Supplies & Services
460294,RIVERSIDE CARE CENTRE,Adult Social Care,Director of People,Residential Home Long Stay Fees,,23/02/2015,"51,272.70",,Social Community Care Supplies & Services
460294,RUSHCLIFFE CARE LTD T/A OAKFORD MANOR NURSING HOME,Adult Social Care,Director of People,Residential Home Long Stay Fees,,23/02/2015,"2,756.16",,Social Community Care Supplies & Services
460294,SEYMOUR REST HOME,Adult Social Care,Director of People,Residential Home Long Stay Fees,,23/02/2015,"1,661.40",,Social Community Care Supplies & Services
460294,SIGN,Adult Social Care,Director of People,Residential Home Long Stay Fees,,23/02/2015,"5,041.13",,Social Community Care Supplies & Services
460294,SPINAL UNIT ACTION GROUP,Adult Social Care,Director of People,Residential Home Long Stay Fees,,23/02/2015,"2,054.15",,Social Community Care Supplies & Services
460294,ST GEORGE'S NURSING HOME (OLDHAM) LTD,Adult Social Care,Director of People,Residential Home Long Stay Fees,,23/02/2015,"24,846.48",,Social Community Care Supplies & Services
460294,ST LAWRENCES LODGE,Adult Social Care,Director of People,Residential Home Long Stay Fees,,23/02/2015,"5,638.32",,Social Community Care Supplies & Services
460294,ST MARY'S CONTINUING CARE LTD,Adult Social Care,Director of People,Residential Home Long Stay Fees,,23/02/2015,"10,555.19",,Social Community Care Supplies & Services
460294,STALEY HOUSE EPH,Adult Social Care,Director of People,Residential Home Long Stay Fees,,23/02/2015,"26,913.77",,Social Community Care Supplies & Services
460294,STONESWOOD RESIDENTIAL HOME,Adult Social Care,Director of People,Residential Home Long Stay Fees,,23/02/2015,"1,129.13",,Social Community Care
460294,SUNNY BANK PRS LTD,Adult Social Care,Director of People,Residential Home Long Stay Fees,,23/02/2015,"2,636.11",,Social Community Care Supplies & Services
460294,THE ALEXANDRA,Adult Social Care,Director of People,Residential Home Long Stay Fees,,23/02/2015,"3,700.14",,Social Community Care Supplies & Services
460294,THE DAVID LEWIS CENTRE,Adult Social Care,Director of People,Residential Home Long Stay Fees,,23/02/2015,"4,866.47",,Social Community Care
460294,THE HESLEY GROUP LTD,Adult Social Care,Director of People,Residential Home Long Stay Fees,,23/02/2015,"7,812.00",,Social Community Care Supplies & Services
460294,THE JOSEPH COX CHARITY,Adult Social Care,Director of People,Residential Home Long Stay Fees,,23/02/2015,"10,427.40",,Social Community Care Supplies & Services
460294,THE ROYAL ELMS REST HOMES,Adult Social Care,Director of People,Residential Home Long Stay Fees,,23/02/2015,"1,663.36",,Social Community Care
460294,THE VICARAGE RESIDENTIAL CARE HOME,Adult Social Care,Director of People,Residential Home Long Stay Fees,,23/02/2015,"22,399.67",,Social Community Care Supplies & Services
460294,THORNCLIFFE GRANGE NURSING HOME,Adult Social Care,Director of People,Residential Home Long Stay Fees,,23/02/2015,"29,944.00",,Social Community Care Supplies & Services
460294,TREETON GRANGE NURSING HOME,Adult Social Care,Director of People,Residential Home Long Stay Fees,,23/02/2015,"1,275.25",,Social Community Care Supplies & Services
460294,TURNING POINT,Adult Social Care,Director of People,Residential Home Long Stay Fees,,23/02/2015,"14,632.72",,Social Community Care Supplies & Services
460294,UNITED RESPONSE,Adult Social Care,Director of People,Residential Home Long Stay Fees,,23/02/2015,"6,172.54",,Social Community Care Supplies & Services
5188677,CHRISTINE  FURZER,Adult Social Care,Director of People,Professional Consultancy Services,Business Payment,23/02/2015,985,,Unclassifiable
5189826,NEW CHARTER HOUSING TRUST GROUP,Adult Social Care,Director of People,Non-Authority Accommodation Rental,,23/02/2015,"2,551.64",,Social Community Care Supplies & Services
5189827,NEW CHARTER HOUSING TRUST GROUP,Adult Social Care,Director of People,Non-Authority Accommodation Rental,,23/02/2015,"1,275.82",,Social Community Care Supplies & Services
5190908,WILLOW WOOD HOSPICE,Adult Social Care,Director of People,Independent Sector Care Fees,,23/02/2015,"3,446.95",,Social Community Care Supplies & Services
5190912,GREENSCAPE,Adult Social Care,Director of People,Professional Services,,23/02/2015,"21,000.00",,"Works - Construction, Repair & Maintenance"
5190993, ,Adult Social Care,Director of People,Day Care Fees,Redacted Supplier,23/02/2015,570.9,,Redacted 
5191071,TAMESIDE ARTS LTD,Adult Social Care,Director of People,Professional Services,,23/02/2015,"1,224.00",,Leisure Services
5191141,G & A TAYLOR HOTELS LTD,Adult Social Care,Director of People,Residential Home Short Stay Fees,,23/02/2015,"1,197.00",,Facilities & Management Services
5190938,COMMUNITY AND VOLUNTARY ACTION TAMESIDE,Adults Early Intervention,Director of People,Development Monies,,23/02/2015,"1,217.81",,Financial Services
5190991,FUTUREGOV,Adults Early Intervention,Director of People,Development Monies,,23/02/2015,"15,000.00",,Consultancy
5191153,PLUCK ANDREW & CO,Childrens Services,Director of People,Legal Fees,,23/02/2015,500,,Legal Services
5191165,JULIE STIRPE ASSOCIATES LTD,Childrens Services,Director of People,Professional Services,,23/02/2015,"1,743.20",,Consultancy
5191244,MO WHITTLE,Childrens Services,Director of People,Inspection Fees,Business Payment,23/02/2015,"1,899.77",,Unclassifiable
5191331,MICHAEL ADLARD,Childrens Services,Director of People,Hired Transport,Business Payment,23/02/2015,695,,Transport
5191335,DENTON LINKS,Childrens Services,Director of People,Hired Transport,,23/02/2015,"1,805.00",,Transport
5190276,AFRUCA,Education,Director of People,Training Course Costs,,23/02/2015,700,,Human Resources
5190297,TEACHING PERSONNEL LTD,Education,Director of People,Agency Staff,,23/02/2015,648.9,,Human Resources
5191257,GLM ACCESSIBLE TRANSPORT,Education,Director of People,Transport Of Pupils,,23/02/2015,"1,400.00",,Transport
5191266,STAMFORD CARS UK LTD,Education,Director of People,Transport Of Ola Pupils,,23/02/2015,990,,Transport
5191271,STAMFORD CARS UK LTD,Education,Director of People,Transport Of Pupils,,23/02/2015,"1,151.00",,Transport
5191273,FENTONS TAXIS,Education,Director of People,Transport Of Pupils,,23/02/2015,"1,660.00",,Transport
5191274,STAMFORD CARS UK LTD,Education,Director of People,Transport Of Post 16 Pupils,,23/02/2015,"1,330.00",,Transport
5191277,GLM ACCESSIBLE TRANSPORT,Education,Director of People,Transport Of Post 16 Pupils,,23/02/2015,"1,520.00",,Transport
5191278,GLM ACCESSIBLE TRANSPORT,Education,Director of People,Transport Of Pupils,,23/02/2015,"1,330.00",,Transport
5191282,STAMFORD CARS UK LTD,Education,Director of People,Transport Of Pupils,,23/02/2015,"1,129.00",,Transport
5191284,STAMFORD CARS UK LTD,Education,Director of People,Transport Of Ola Pupils,,23/02/2015,"1,510.50",,Transport
5191287,MICHAEL ADLARD,Education,Director of People,Transport Of Pupils,Business Payment,23/02/2015,"1,440.00",,Transport
5191288,FENTONS MINIBUSES LTD,Education,Director of People,Transport Of Ola Pupils,,23/02/2015,"1,459.00",,Transport
5191289,MICHAEL ADLARD,Education,Director of People,Transport Of Pupils,Business Payment,23/02/2015,"2,050.00",,Transport
5191358,DEVERE VILLAGE URBAN RESORTS,Education,Director of People,Room Hire,,23/02/2015,"1,166.67",,Unclassifiable
5190823,NORTHENDEN TRAVEL LTD,Strategy & Early Intervention,Director of People,Staff Travel Costs,,23/02/2015,729,,Human Resources
5189411,THE FURNISHING SERVICE LTD,Stronger Communities,Director of People,Fixtures & Fittings Purchase,,23/02/2015,"1,109.90",,Furniture
5189423,THE FURNISHING SERVICE LTD,Stronger Communities,Director of People,Fixtures & Fittings Purchase,,23/02/2015,839.37,,Furniture
5189433,THE FURNISHING SERVICE LTD,Stronger Communities,Director of People,Fixtures & Fittings Purchase,,23/02/2015,990.35,,Furniture
5189540,THE FURNISHING SERVICE LTD,Stronger Communities,Director of People,Fixtures & Fittings Purchase,,23/02/2015,556.68,,Furniture
5189551,THE FURNISHING SERVICE LTD,Stronger Communities,Director of People,Fixtures & Fittings Purchase,,23/02/2015,982.67,,Furniture
5190312,THE FURNISHING SERVICE LTD,Stronger Communities,Director of People,Fixtures & Fittings Purchase,,23/02/2015,"1,032.31",,Furniture
5190532,THE FURNISHING SERVICE LTD,Stronger Communities,Director of People,Fixtures & Fittings Purchase,,23/02/2015,982.67,,Furniture
5190777,THE FURNISHING SERVICE LTD,Stronger Communities,Director of People,Fixtures & Fittings Purchase,,23/02/2015,"1,194.69",,Furniture
5190997,FRIENDS OF STALYBRIDGE WAR MEMORIAL,Stronger Communities,Director of People,Building Works,,23/02/2015,600,,Unclassifiable
5191131,MOONSCAPE MEDIA LIMITED,Stronger Communities,Director of People,"Marketing, Publicity and Recruitment",,23/02/2015,565.25,,Financial Services
5191214, ,Stronger Communities,Director of People,Emergency Grant Payments,Redacted Supplier,23/02/2015,530,,Redacted 
5191305,THE FURNISHING SERVICE LTD,Stronger Communities,Director of People,Fixtures & Fittings Purchase,,23/02/2015,623.69,,Furniture
5189823,UNITED UTILITIES WATER PLC,Asset & Investment Partnership Management,Director of Place,Metered Water Costs,,23/02/2015,"3,212.94",,Utilities
5189833,UNITED UTILITIES WATER PLC,Asset & Investment Partnership Management,Director of Place,Metered Water Costs,,23/02/2015,"2,694.20",,Utilities
5190763,JL ADVISORY,Asset & Investment Partnership Management,Director of Place,Professional Consultancy Services,,23/02/2015,"2,329.27",,Unclassifiable
5190838,UNITED UTILITIES WATER PLC,Asset & Investment Partnership Management,Director of Place,Metered Water Costs,,23/02/2015,845.65,,Utilities
5190948,CORONA ENERGY RETAIL 4 LIMITED,Asset & Investment Partnership Management,Director of Place,Gas,,23/02/2015,510.95,,Utilities
5191044,IAN COOK,Asset & Investment Partnership Management,Director of Place,Hired Transport,Business Payment,23/02/2015,560,,Transport
5183742,FAB EVENTS LIMITED,Development Growth & Investment,Director of Place,Professional Entertainment Services,,23/02/2015,"1,180.00",,Facilities & Management Services
5191193,BEVAN BRITTAN LLP,Development Growth & Investment,Director of Place,Legal Fees, ,23/02/2015,"2,222.50",,Legal Services
470600,SAFECOTE LTD,Environmental Services,Director of Place,General Materials,,23/02/2015,"1,700.00",,"Works - Construction, Repair & Maintenance"
5191134,REDDIPAK LIMITED,Environmental Services,Director of Place,General Materials,,23/02/2015,576.4,,Unclassifiable
460294,GREATER MANCHESTER WEST MENTAL HEALTH FOUNDATION TRUST,Public Health,Director of Public Health,Residential Home Long Stay Fees,,23/02/2015,"4,416.00",,Medical
460294,TURNING POINT,Public Health,Director of Public Health,Residential Home Long Stay Fees,,23/02/2015,"8,784.48",,Social Community Care Supplies & Services
5188796,MANCHESTER CITY COUNCIL,Public Health,Director of Public Health,Professional Services,,23/02/2015,"3,911.00",,Financial Services
5190730,TURNING POINT,Public Health,Director of Public Health,Professional Services,,23/02/2015,"1,610.00",,Social Community Care Supplies & Services
5191018,B&E CONSULTANTS LTD,Public Health,Director of Public Health,Professional Services,,23/02/2015,"1,250.00",,CONSULTANCY
5191179,BROWNS BOOKS FOR STUDENTS,Public Health,Director of Public Health,Educational/Instructional Materials,,23/02/2015,"7,488.00",,Education
5191212,TAMESIDE SPORTS TRUST,Public Health,Director of Public Health,Professional Services,,23/02/2015,"100,000.00",,Leisure Services
5191042,INSPIREDSPACES TAMESIDE LTD,Asset & Investment Partnership Management,Director of Place,Survey/Surveyors Fees,,23/02/2015,"30,292.19",,Consultancy
5191042,INSPIREDSPACES TAMESIDE LTD,Multiple Heads of Service,Multiple Heads of Service,Survey/Surveyors Fees,,23/02/2015,"60,067.53",,Consultancy
5191156,MS EMMA GREENHALGH,Governance,Director of Governance,Legal Fees,Business Payment,24/02/2015,"2,200.00",,Unclassifiable
5191078,LIVERPOOL JOHN MOORES UNIVERSITY,Public Health,Director of Public Health,Professional Services,,24/02/2015,"9,816.00",,Unclassifiable
5191143,LIVERPOOL JOHN MOORES UNIVERSITY,Public Health,Director of Public Health,Project Expenditure Home Office,,24/02/2015,"9,967.00",,Unclassifiable
5187484,WILLIAMS WOODWARD LTD,Finance,Director of Finance,Professional Consultancy Services,,25/02/2015,"8,300.00",,CONSULTANCY
5188511,WILLIAMS WOODWARD LTD,Finance,Director of Finance,Professional Consultancy Services,,25/02/2015,"8,300.00",,CONSULTANCY
5189635,WILLIAMS WOODWARD LTD,Finance,Director of Finance,Professional Consultancy Services,,25/02/2015,"7,885.00",,CONSULTANCY
5189430, ,Adult Social Care,Director of People,Professional Consultancy Services,Redacted Supplier,25/02/2015,"3,600.00",,Redacted 
5190262,TAMESIDE SPORTS TRUST,Adult Social Care,Director of People,Professional Services,,25/02/2015,"3,213.00",,Leisure Services
5190330,PAYPARTNERS LTD (MONTHLY),Adult Social Care,Director of People,Sub-contractor Services,,25/02/2015,780.5,,Social Community Care Supplies & Services
5190648,TAMESIDE LINK,Adult Social Care,Director of People,Voluntary Organisations Fees,,25/02/2015,"15,086.32",,Social Community Care Supplies & Services
5190658,COMMUNITY INTEGRATED CARE,Adult Social Care,Director of People,Homecare Fees,,25/02/2015,"18,360.00",,Social Community Care Supplies & Services
5190687,MOSSCARE HOUSING LTD,Adult Social Care,Director of People,Non-Authority Accommodation Rental,,25/02/2015,"28,480.93",,Social Community Care Supplies & Services
5190865,OLD FORGE FURNITURE,Adult Social Care,Director of People,Fixtures & Fittings Purchase,,25/02/2015,"1,045.00",,Furniture
5191027,STOCKPORT CP  SOCIETY,Adult Social Care,Director of People,Day Centre Fees,,25/02/2015,"1,006.35",,Social Community Care Supplies & Services
5191075,PAYPARTNERS LTD (MONTHLY),Adult Social Care,Director of People,Sub-contractor Services,,25/02/2015,"4,872.00",,Social Community Care Supplies & Services
5191142,STOCKPORT CP  SOCIETY,Adult Social Care,Director of People,Day Centre Fees,,25/02/2015,"1,006.35",,Social Community Care Supplies & Services
5191209,VINCENT OBRIEN (CONSTRUCTION),Adult Social Care,Director of People,Improvement Grants - Final Discretionary,,25/02/2015,"1,425.00",,"Works - Construction, Repair & Maintenance"
5191376,STOCKPORT NHS FOUNDATION TRUST,Adult Social Care,Director of People,Agency Staff,,25/02/2015,"2,977.08",,Medical
5191462,CARE UK HOMECARE,Adult Social Care,Director of People,Homecare Fees,,25/02/2015,"1,257.25",,Social Community Care Supplies & Services
5191463,CARE UK HOMECARE,Adult Social Care,Director of People,Homecare Fees,,25/02/2015,"31,353.00",,Social Community Care Supplies & Services
5191468,STOCKPORT PSYCHOLOGY SERVICES LTD,Childrens Services,Director of People,Professional Services,,25/02/2015,"9,447.29",,Medical
5185368,BERTRAM LIBRARY SERVICES,Education,Director of People,Text Books Periodicals and Newspapers,,25/02/2015,533.84,,Education
5191471,HOWARD COOK,Education,Director of People,Professional Services,Business Payment,25/02/2015,702,,Unclassifiable
5191479,AUTISM INITIATIVES,Education,Director of People,Voluntary Organisations Fees,,25/02/2015,"28,279.63",,Social Community Care
5190529,THE FURNISHING SERVICE LTD,Stronger Communities,Director of People,Fixtures & Fittings Purchase,,25/02/2015,740.78,,Furniture
5190530,THE FURNISHING SERVICE LTD,Stronger Communities,Director of People,Fixtures & Fittings Purchase,,25/02/2015,820.65,,Furniture
5190842,NEW CHARTER HOUSING TRUST GROUP,Stronger Communities,Director of People,Agency Staff,,25/02/2015,"1,626.37",,Social Community Care Supplies & Services
5191263,TAMESIDE HOSPITAL NHS FOUNDATION TRUST,Stronger Communities,Director of People,Purchase Books,,25/02/2015,650.4,,Medical
5191439,PAYPOINT COLLECTIONS LTD,Stronger Communities,Director of People,Emergency Grant Payments,,25/02/2015,"5,000.00",,Unclassifiable
5191447,THE FURNISHING SERVICE LTD,Stronger Communities,Director of People,Fixtures & Fittings Purchase,,25/02/2015,600,,Furniture
5191466,KINGS CHAMBERS,Development Growth & Investment,Director of Place,Legal Fees,,25/02/2015,"31,223.40",,Public Bodies
5188305,CBS (NORTH WEST) LTD,Environmental Services,Director of Place,General Materials,,25/02/2015,"1,092.00",,"Works - Construction, Repair & Maintenance"
5189064,STOCKPORT NHS FOUNDATION TRUST,Public Health,Director of Public Health,Professional Services,,25/02/2015,"4,000.00",,Medical
5189071,CENTRAL MANCHESTER UNIVERSITY HOSPITAL NHS FT,Public Health,Director of Public Health,Professional Services,,25/02/2015,"30,974.00",,Human Resources
5190666,V4 SERVICES LTD,Public Health,Director of Public Health,Professional Consultancy Services,,25/02/2015,"2,400.00",,CONSULTANCY
5190709,STOCKPORT NHS FOUNDATION TRUST,Public Health,Director of Public Health,Professional Services,,25/02/2015,"259,793.00",,Medical
5190792,LEEDS TRADING COMPANY LTD (T/A LTC HEALTHCARE),Public Health,Director of Public Health,Consumable Materials,,25/02/2015,"4,084.00",,Consultancy
5178990,HM COURTS AND TRIBUNALS SERVICE,Development Growth & Investment,Director of Place,External  Consultants,,25/02/2015,"4,860.00",,Public Bodies
5189566,BT PLC,Multiple Heads of Service,Multiple Strategic Directorates,Telephone Landline Costs,,25/02/2015,"2,585.45",,Information Communication Technology
5191041,MINISTER LAW SOLICITORS,Multiple Heads of Service,Multiple Strategic Directorates,Claims Settled, ,25/02/2015,"4,000.00",,Unclassifiable
5191126,TRAVELERS INSURANCE COMPANY LTD,Multiple Heads of Service,Multiple Strategic Directorates,Reimbursement Paid To Insurers,,25/02/2015,"59,172.05",,Financial Services
5190251,ROYAL MAIL GROUP PLC,Exchequer,Director of Finance,Postages,,26/02/2015,"1,770.02",,Mail Services
5190296,HEALTH MANAGEMENT (UK) LTD,Governance,Director of Governance,Professional Medical services,,26/02/2015,"6,366.17",,Medical
5191467,THOMSON REUTERS LEGAL LTD,Governance,Director of Governance,Subscriptions,,26/02/2015,"7,793.75",,Legal Services
5191532,COMPLETE BACKGROUND SCREENING LTD,Governance,Director of Governance,Professional Services,,26/02/2015,"44,167.50",,Unclassifiable
5191562,THE REVOLUTION 96.2,Governance,Director of Governance,Statutory Advertising,,26/02/2015,"1,425.00",,Unclassifiable
5189779,CREATIVE SUPPORT LTD,Adult Social Care,Director of People,Homecare Fees,,26/02/2015,"13,634.25",,Social Community Care Supplies & Services
5191012,STOCKPORT NHS FOUNDATION TRUST,Adult Social Care,Director of People,Agency Staff,,26/02/2015,"2,977.08",,Medical
5191067,ABLE CARE AND SUPPORT SERVICES LTD,Adult Social Care,Director of People,Homecare Fees,,26/02/2015,"2,056.00",,Social Community Care Supplies & Services
5191200,CREATIVE SUPPORT LTD,Adult Social Care,Director of People,Independent Sector Care Fees,,26/02/2015,"67,669.36",,Social Community Care Supplies & Services
5191202,ABLE CARE AND SUPPORT SERVICES LTD,Adult Social Care,Director of People,Homecare Fees,,26/02/2015,"2,013.00",,Social Community Care Supplies & Services
5191517,"TAMESIDE, OLDHAM AND GLOSSOP MIND",Adults Early Intervention,Director of People,Professional Services,,26/02/2015,"1,322.30",,Social Community Care Supplies & Services
5191308,GREATER MANCHESTER POLICE,Childrens Services,Director of People,Professional Services,,26/02/2015,"16,864.00",,Non 3rd Party spend  
5189954,PC WORLD BUSINESS,Education,Director of People,Computer Hardware Purchase,,26/02/2015,"1,989.40",,Information Communication Technology
5189954,PC WORLD BUSINESS,Education,Director of People,Postages,,26/02/2015,9.99,,Information Communication Technology
5190933,TAMESIDE COLLEGE,Education,Director of People,Professional Services,,26/02/2015,"377,292.71",,Education
5191379,AGRICULTURAL AND RURAL CENTRE CIC,Education,Director of People,Professional Services,,26/02/2015,"2,400.00",,Education
5191536,RADIO CABS (ASHTON)LTD,Education,Director of People,Transport Of Pupils,,26/02/2015,"1,823.00",,Transport
5191546,RADIO CABS (ASHTON)LTD,Education,Director of People,Transport Of Ola Pupils,,26/02/2015,606.8,,Transport
5191547,RADIO CABS (ASHTON)LTD,Education,Director of People,Transport Of Pupils,,26/02/2015,"1,961.00",,Transport
5191548,RADIO CABS (ASHTON)LTD,Education,Director of People,Transport Of Post 16 Pupils,,26/02/2015,"2,052.00",,Transport
5191549,RADIO CABS (ASHTON)LTD,Education,Director of People,Transport Of Post 16 Pupils,,26/02/2015,791.7,,Transport
5191551,RADIO CABS (ASHTON)LTD,Education,Director of People,Transport Of Pupils,,26/02/2015,"1,516.50",,Transport
5191556,RADIO CABS (ASHTON)LTD,Education,Director of People,Transport Of Pupils,,26/02/2015,"1,032.00",,Transport
5191558,RADIO CABS (ASHTON)LTD,Education,Director of People,Transport Of Pupils,,26/02/2015,"1,833.00",,Transport
5191559,RADIO CABS (ASHTON)LTD,Education,Director of People,Transport Of Pupils,,26/02/2015,"1,833.00",,Transport
5191560,RADIO CABS (ASHTON)LTD,Education,Director of People,Transport Of Ola Pupils,,26/02/2015,"2,242.50",,Transport
5191561,DENTON LINKS,Education,Director of People,Transport Of Ola Pupils,,26/02/2015,"1,795.50",,Transport
5191564,DENTON LINKS,Education,Director of People,Transport Of Ola Pupils,,26/02/2015,"1,700.00",,Transport
5191565,DENTON LINKS,Education,Director of People,Transport Of Ola Pupils,,26/02/2015,"3,340.00",,Transport
5191568,STAMFORD CARS UK LTD,Education,Director of People,Transport Of Ola Pupils,,26/02/2015,"2,185.00",,Transport
5191569,STAMFORD CARS UK LTD,Education,Director of People,Transport Of Ola Pupils,,26/02/2015,"2,050.00",,Transport
5191571,STAMFORD CARS UK LTD,Education,Director of People,Transport Of Ola Pupils,,26/02/2015,"1,785.00",,Transport
5191573,STAMFORD CARS UK LTD,Education,Director of People,Transport Of Ola Pupils,,26/02/2015,"3,040.00",,Transport
5191574,STAMFORD CARS UK LTD,Education,Director of People,Transport Of Ola Pupils,,26/02/2015,"1,526.25",,Transport
5191575,STAMFORD CARS UK LTD,Education,Director of People,Transport Of Pupils,,26/02/2015,"2,476.75",,Transport
5191576,STAMFORD CARS UK LTD,Education,Director of People,Transport Of Pupils,,26/02/2015,902.5,,Transport
5191579,STAMFORD CARS UK LTD,Education,Director of People,Transport Of Pupils,,26/02/2015,"1,228.50",,Transport
5191580,STAMFORD CARS UK LTD,Education,Director of People,Transport Of Pupils,,26/02/2015,"1,620.00",,Transport
5191581,STAMFORD CARS UK LTD,Education,Director of People,Transport Of Ola Pupils,,26/02/2015,"1,485.00",,Transport
5191582,STAMFORD CARS UK LTD,Education,Director of People,Transport Of Pupils,,26/02/2015,"1,835.00",,Transport
5189624,THE CARE TEAM LTD,Stronger Communities,Director of People,Professional Medical Services,,26/02/2015,900,,Unclassifiable
5189741,FOUNDATION (CENTRAL SERVICES),Stronger Communities,Director of People,Supporting People Gross Contract,,26/02/2015,"35,000.00",,Social & Community
5190323,THE READING AGENCY FOR LIBRARIES LTD,Stronger Communities,Director of People,Purchase Books,,26/02/2015,"1,729.75",,Education
5191198,INSPIREDSPACES TAMESIDE LTD,Asset & Investment Partnership Management,Director of Place,Computer Software Maintenance Costs,,26/02/2015,"23,296.80",,Consultancy
5191198,INSPIREDSPACES TAMESIDE LTD,Asset & Investment Partnership Management,Director of Place,Hire Of Rooms,,26/02/2015,"-19,856.31",,Consultancy
5191198,INSPIREDSPACES TAMESIDE LTD,Asset & Investment Partnership Management,Director of Place,PAT Testing,,26/02/2015,"23,132.82",,Consultancy
5191199,INSPIREDSPACES TAMESIDE LTD,Asset & Investment Partnership Management,Director of Place,Cleaning Materials,,26/02/2015,"8,295.08",,Consultancy
5191199,INSPIREDSPACES TAMESIDE LTD,Asset & Investment Partnership Management,Director of Place,Professional Services,,26/02/2015,"62,032.57",,Consultancy
5191199,INSPIREDSPACES TAMESIDE LTD,Asset & Investment Partnership Management,Director of Place,Refreshments,,26/02/2015,"16,750.74",,Consultancy
5191201,INSPIREDSPACES TAMESIDE LTD,Asset & Investment Partnership Management,Director of Place,Professional Services,,26/02/2015,"80,900.00",,Consultancy
5191233,CORONA ENERGY RETAIL 4 LIMITED,Asset & Investment Partnership Management,Director of Place,Gas,,26/02/2015,"2,356.10",,Utilities
5191234,CORONA ENERGY RETAIL 4 LIMITED,Asset & Investment Partnership Management,Director of Place,Gas,,26/02/2015,"4,270.90",,Utilities
5191238,CORONA ENERGY RETAIL 4 LIMITED,Asset & Investment Partnership Management,Director of Place,Gas,,26/02/2015,"2,629.75",,Utilities
5191241,CORONA ENERGY RETAIL 4 LIMITED,Asset & Investment Partnership Management,Director of Place,Gas,,26/02/2015,"2,169.58",,Utilities
5191242,CORONA ENERGY RETAIL 4 LIMITED,Asset & Investment Partnership Management,Director of Place,Gas,,26/02/2015,"1,222.85",,Utilities
5191275,CALL A CAR (TAMESIDE) LTD,Asset & Investment Partnership Management,Director of Place,Hired Transport,,26/02/2015,775,,Human Resources
5191397,VODAFONE,Asset & Investment Partnership Management,Director of Place,Telephone Landline Costs,,26/02/2015,940.83,,Information Communication Technology
5191478,SANCTUARY HOUSING  ASSOCIATION,Asset & Investment Partnership Management,Director of Place,Gas,,26/02/2015,680,,Housing Management
5189878,GV MULTI-MEDIA,Development Growth & Investment,Director of Place,It Equipment,,26/02/2015,"1,209.00",,Information Communication Technology
5190670,PETER BRETT ASSOCIATES LLP,Development Growth & Investment,Director of Place,Professional Services,,26/02/2015,"4,101.81",,Consultancy
5191171,ON365,Digital Tameside,Director of Place,General Equipment Repair & Maintenance,,26/02/2015,"2,567.00",,Information Communication Technology
3250497,DENNIS EAGLE LTD,Environmental Services,Director of Place,General Materials,,26/02/2015,923.04,,Vehicles
3250497,F & G COMMERCIALS (OLDHAM) LIMITED,Environmental Services,Director of Place,General Materials,,26/02/2015,853.98,,Vehicles
3250497,GUNN JCB LTD,Environmental Services,Director of Place,General Materials,,26/02/2015,628.47,,Vehicles
3250497,HI-Q TYRESERVICES,Environmental Services,Director of Place,Tyre Costs,,26/02/2015,513.95,,Vehicles
3250497,JOHNSTON SWEEPERS LTD,Environmental Services,Director of Place,General Materials,,26/02/2015,"2,034.52",,Environmental Services
3250497,PEAK PARTS,Environmental Services,Director of Place,Consumable Materials,,26/02/2015,173.61,,Vehicles
3250497,PEAK PARTS,Environmental Services,Director of Place,General Materials,,26/02/2015,330,,Vehicles
3250497,WEST PENNINE TRUCKS,Environmental Services,Director of Place,General Materials,,26/02/2015,"3,664.24",,Vehicles
3250497,WEST PENNINE TRUCKS,Environmental Services,Director of Place,Vehicle Inspection/Testing Costs,,26/02/2015,191,,Vehicles
5185867,CRAEMER UK LTD,Environmental Services,Director of Place,Refuse Domestic Bin Purchases,,26/02/2015,"6,152.35",,Environmental Services
5188956,CRAEMER UK LTD,Environmental Services,Director of Place,Refuse Domestic Bin Purchases,,26/02/2015,"10,382.88",,Environmental Services
5189789,AGGREGATE INDUSTRIES UK LIMITED,Environmental Services,Director of Place,HRA Repairs Engineers Recharge,,26/02/2015,"9,215.30",,Highway Equipment & Materials�
5190140,SCHNEIDER ELECTRIC EMS UK LIMITED,Environmental Services,Director of Place,Building Maintenance,,26/02/2015,771.5,,Unclassifiable
5190477,NSL LIMITED,Environmental Services,Director of Place,NSL Fees,,26/02/2015,"54,232.68",,Traffic Management
5191290,CRAEMER UK LTD,Environmental Services,Director of Place,Refuse Domestic Bin Purchases,,26/02/2015,"13,915.20",,Environmental Services
5191539,RADIO CABS (ASHTON)LTD,Environmental Services,Director of Place,Hired Transport,,26/02/2015,"1,480.00",,Transport
5191540,RADIO CABS (ASHTON)LTD,Environmental Services,Director of Place,Hired Transport,,26/02/2015,527.8,,Transport
5191542,RADIO CABS (ASHTON)LTD,Environmental Services,Director of Place,Hired Transport,,26/02/2015,810.6,,Transport
5191544,RADIO CABS (ASHTON)LTD,Environmental Services,Director of Place,Hired Transport,,26/02/2015,970.3,,Transport
5190135,PEEP LEARNING LTD,Public Health,Director of Public Health,Training Course Costs,,26/02/2015,"4,869.25",,Human Resources
5190467,THE PENNINE ACUTE HOSPITALS NHS TRUST,Public Health,Director of Public Health,Professional Services,,26/02/2015,658,,Medical
5190307,ADDLESHAW GODDARD,Asset and Investment Partnership Management,Director of Place,Legal - External,,26/02/2015,643.5,,Legal Services
5190708,ADDLESHAW GODDARD,Asset and Investment Partnership Management,Director of Place,Legal - External,,26/02/2015,"1,058.00",,Legal Services
5191199,INSPIREDSPACES TAMESIDE LTD,Asset and Investment Partnership Management,Director of Place,Refurbishment Construction Costs,,26/02/2015,"24,942.61",,Consultancy
5191201,INSPIREDSPACES TAMESIDE LTD,Asset and Investment Partnership Management,Director of Place,Computer Hardware,,26/02/2015,499.99,,Consultancy
5191201,INSPIREDSPACES TAMESIDE LTD,Asset and Investment Partnership Management,Director of Place,Refurbishment Construction Costs,,26/02/2015,"184,005.12",,Consultancy
5191510,ADDLESHAW GODDARD,Asset and Investment Partnership Management,Director of Place,Legal - External,,26/02/2015,"9,328.08",,Legal Services
5189936,PETER BRETT ASSOCIATES LLP,Environmental Services,Director of Place,Engineers -External,,26/02/2015,"1,950.00",,Consultancy
5191199,INSPIREDSPACES TAMESIDE LTD,Asset & Investment Partnership Management,Director of Place,Refurbishment Construction Costs,,26/02/2015,"6,018.98",,Consultancy
3250497,DENNIS EAGLE LTD,Environmental Services,Director of Place,Debits Goods Received,,26/02/2015,"1,011.36",,Vehicles
3250497,F. R. SHARROCK LIMITED,Environmental Services,Director of Place,Debits Goods Received,,26/02/2015,851.72,,Public Bodies
5191199,INSPIREDSPACES TAMESIDE LTD,Multiple Heads of Service,Multiple Heads of Service,Refurbish Accommodation Works,,26/02/2015,"9,074.25",,Consultancy
5191199,INSPIREDSPACES TAMESIDE LTD,Multiple Heads of Service,Multiple Heads of Service,Refurbishment Construction Costs,,26/02/2015,"38,200.61",,Consultancy
5191201,INSPIREDSPACES TAMESIDE LTD,Multiple Heads of Service,Multiple Heads of Service,Other works,,26/02/2015,"-14,769.50",,Consultancy
5191201,INSPIREDSPACES TAMESIDE LTD,Multiple Heads of Service,Multiple Heads of Service,Refurbishment Construction Costs,,26/02/2015,"-3,316.69",,Consultancy
5191139,DAISY COMMUNICATIONS LTD,Multiple Heads of Service,Multiple Strategic Directorates,Telephone Landline Costs,,26/02/2015,"5,101.64",,Public Bodies
5191198,INSPIREDSPACES TAMESIDE LTD,Asset & Investment Partnership Management,Director of Place,PFI Facilities Management Services,,26/02/2015,"70,520.18",,Consultancy
  ,CAPITA - BENEFIT PAYMENTS,Exchequer,Director of Finance,Housing Benefit Payments,, ,"6,439,510.70",,Unclassifiable
,FOSTERING/ADOPTION/LOOKED AFTER CHILDREN RELATED PAYMENTS,Childrens Services,Director of People,Child related Payments,,,"748,544.85",,Social Community Care 
,HAYS SPECIALIST RECRUITMENT GROUP,Multiple Heads of Service,Multiple Strategic Directorates,Agency Staff,,,"108,473.37",,Human Resources
,CARE RELATED PAYMENTS,Multiple Heads of Service,Multiple Strategic Directorates,Care Related Payments,,,"445,824.75",,Social Community Care 
